Workbook

Sheet Sheet1
B2: Inflation demonstration model (50 years)
B4: This model was prepared to investigate questions relating to the treatment of inflation in the regulatory regime.
B5: It incorporates the "core" of the logic of the Roll Forward Model and the PRTM, but without much of the detail of those models.
B6: The model does not incorporate OPEX or new CAPEX.
B7: Nor does the model incorporate annual updating of the rate of return on debt.
B9: Model inputs are in blue: 123
B10: The model uses a simple macro for total revenue smoothing in each regulatory period.
B11: Running the macro: Ctrl+z
G13: Period 1 | L13: Period 2 | Q13: Period 3 | V13: Period 4 | AA13: Period 5 | AF13: Period 6 | AK13: Period 7 | AP13: Period 8 | AU13: Period 9 | AZ13: Period 10
B14: Year | G14: 1 | H14: =G14+1 -> 2 | I14: =H14+1 -> 3 | J14: 4 | K14: 5 | L14: =K14+1 -> 6 | M14: =L14+1 -> 7 | N14: =M14+1 -> 8 | O14: =N14+1 -> 9 | P14: =O14+1 -> 10 | Q14: =P14+1 -> 11 | R14: =Q14+1 -> 12 | S14: =R14+1 -> 13 | T14: =S14+1 -> 14 | U14: =T14+1 -> 15 | V14: =U14+1 -> 16 | W14: =V14+1 -> 17 | X14: =W14+1 -> 18 | Y14: =X14+1 -> 19 | Z14: =Y14+1 -> 20 | AA14: =Z14+1 -> 21 | AB14: =AA14+1 -> 22 | AC14: =AB14+1 -> 23 | AD14: =AC14+1 -> 24 | AE14: =AD14+1 -> 25 | AF14: =AE14+1 -> 26 | AG14: =AF14+1 -> 27 | AH14: =AG14+1 -> 28 | AI14: =AH14+1 -> 29 | AJ14: =AI14+1 -> 30 | AK14: =AJ14+1 -> 31 | AL14: =AK14+1 -> 32 | AM14: =AL14+1 -> 33 | AN14: =AM14+1 -> 34 | AO14: =AN14+1 -> 35 | AP14: =AO14+1 -> 36 | AQ14: =AP14+1 -> 37 | AR14: =AQ14+1 -> 38 | AS14: =AR14+1 -> 39 | AT14: =AS14+1 -> 40 | AU14: =AT14+1 -> 41 | AV14: =AU14+1 -> 42 | AW14: =AV14+1 -> 43 | AX14: =AW14+1 -> 44 | AY14: =AX14+1 -> 45 | AZ14: =AY14+1 -> 46 | BA14: =AZ14+1 -> 47 | BB14: =BA14+1 -> 48 | BC14: =BB14+1 -> 49 | BD14: =BC14+1 -> 50
B16: Initial asset base | D16: $ | E16: 100
B17: Asset life | D17: years | E17: 50
B19: Inflation used in depreciation calculation
B20: Expected inflation | G20: 0.025 | L20: 0.025 | Q20: 0.025 | V20: 0.025 | AA20: 0.025 | AF20: 0.025 | AK20: 0.025 | AP20: 0.025 | AU20: 0.025 | AZ20: 0.025
B21: Cumulative expected inflation factor (from start of period) | G21: =1+G20 -> 1.025 | H21: =G21*(1+$G$20) -> 1.050625 | I21: =H21*(1+$G$20) -> 1.076890625 | J21: =I21*(1+$G$20) -> 1.103812891 | K21: =J21*(1+$G$20) -> 1.131408213 | L21: =1+L20 -> 1.025 | M21: =L21*(1+$L$20) -> 1.050625 | N21: =M21*(1+$L$20) -> 1.076890625 | O21: =N21*(1+$L$20) -> 1.103812891 | P21: =O21*(1+$L$20) -> 1.131408213 | Q21: =1+Q20 -> 1.025 | R21: =Q21*(1+$L$20) -> 1.050625 | S21: =R21*(1+$L$20) -> 1.076890625 | T21: =S21*(1+$L$20) -> 1.103812891 | U21: =T21*(1+$L$20) -> 1.131408213 | V21: =1+V20 -> 1.025 | W21: =V21*(1+$L$20) -> 1.050625 | X21: =W21*(1+$L$20) -> 1.076890625 | Y21: =X21*(1+$L$20) -> 1.103812891 | Z21: =Y21*(1+$L$20) -> 1.131408213 | AA21: =1+AA20 -> 1.025 | AB21: =AA21*(1+$L$20) -> 1.050625 | AC21: =AB21*(1+$L$20) -> 1.076890625 | AD21: =AC21*(1+$L$20) -> 1.103812891 | AE21: =AD21*(1+$L$20) -> 1.131408213 | AF21: =1+AF20 -> 1.025 | AG21: =AF21*(1+$L$20) -> 1.050625 | AH21: =AG21*(1+$L$20) -> 1.076890625 | AI21: =AH21*(1+$L$20) -> 1.103812891 | AJ21: =AI21*(1+$L$20) -> 1.131408213 | AK21: =1+AK20 -> 1.025 | AL21: =AK21*(1+$L$20) -> 1.050625 | AM21: =AL21*(1+$L$20) -> 1.076890625 | AN21: =AM21*(1+$L$20) -> 1.103812891 | AO21: =AN21*(1+$L$20) -> 1.131408213 | AP21: =1+AP20 -> 1.025 | AQ21: =AP21*(1+$L$20) -> 1.050625 | AR21: =AQ21*(1+$L$20) -> 1.076890625 | AS21: =AR21*(1+$L$20) -> 1.103812891 | AT21: =AS21*(1+$L$20) -> 1.131408213 | AU21: =1+AU20 -> 1.025 | AV21: =AU21*(1+$L$20) -> 1.050625 | AW21: =AV21*(1+$L$20) -> 1.076890625 | AX21: =AW21*(1+$L$20) -> 1.103812891 | AY21: =AX21*(1+$L$20) -> 1.131408213 | AZ21: =1+AZ20 -> 1.025 | BA21: =AZ21*(1+$AZ$20) -> 1.050625 | BB21: =BA21*(1+$AZ$20) -> 1.076890625 | BC21: 1.103812891 | BD21: 1.131408213
B22: Cumulative expected inflation factor (from start of Year 1) | G22: =1+G20 -> 1.025 | H22: =G22*(1+$G$20) -> 1.050625 | I22: =H22*(1+$G$20) -> 1.076890625 | J22: 1.103812891 | K22: 1.131408213 | L22: =K25*(1+$L$20) -> 1.159693418 | M22: =L22*(1+$L$20) -> 1.188685754 | N22: 1.218402898 | O22: 1.24886297 | P22: 1.280084544 | Q22: =P25*(1+$Q$20) -> 1.312086658 | R22: =Q22*(1+$Q$20) -> 1.344888824 | S22: 1.378511045 | T22: 1.412973821 | U22: 1.448298166 | V22: =U25*(1+$V$20) -> 1.484505621 | W22: =V22*(1+$V$20) -> 1.521618261 | X22: 1.559658718 | Y22: 1.598650186 | Z22: 1.63861644 | AA22: =Z25*(1+$AA$20) -> 1.679581851 | AB22: =AA22*(1+$AA$20) -> 1.721571398 | AC22: 1.764610683 | AD22: 1.80872595 | AE22: 1.853944098 | AF22: =AE25*(1+$AF$20) -> 1.900292701 | AG22: =AF22*(1+$AF$20) -> 1.947800018 | AH22: 1.996495019 | AI22: 2.046407394 | AJ22: 2.097567579 | AK22: =AJ25*(1+$AK$20) -> 2.150006769 | AL22: =AK22*(1+$AK$20) -> 2.203756938 | AM22: 2.258850861 | AN22: 2.315322133 | AO22: 2.373205186 | AP22: =AO25*(1+$AP$20) -> 2.432535316 | AQ22: =AP22*(1+$AP$20) -> 2.493348699 | AR22: 2.555682416 | AS22: 2.619574476 | AT22: 2.685063838 | AU22: =AT25*(1+$AU$20) -> 2.752190434 | AV22: =AU22*(1+$AU$20) -> 2.820995195 | AW22: 2.891520075 | AX22: 2.963808077 | AY22: 3.037903279 | AZ22: =AY25*(1+$AZ$20) -> 3.113850861 | BA22: =AZ22*(1+$AZ$20) -> 3.191697132 | BB22: 3.271489561 | BC22: 3.3532768 | BD22: 3.43710872
B23: Actual inflation | G23: =G31 -> 0.025 | H23: =H31 -> 0.025 | I23: 0.025 | J23: 0.025 | K23: 0.025 | L23: 0.025 | M23: 0.025 | N23: =N31 -> 0.025 | O23: 0.025 | P23: 0.025 | Q23: 0.025 | R23: 0.025 | S23: 0.025 | T23: 0.025 | U23: 0.025 | V23: 0.025 | W23: 0.025 | X23: 0.025 | Y23: 0.025 | Z23: 0.025 | AA23: 0.025 | AB23: 0.025 | AC23: 0.025 | AD23: 0.025 | AE23: 0.025 | AF23: 0.025 | AG23: 0.025 | AH23: 0.025 | AI23: 0.025 | AJ23: 0.025 | AK23: 0.025 | AL23: 0.025 | AM23: 0.025 | AN23: 0.025 | AO23: 0.025 | AP23: 0.025 | AQ23: 0.025 | AR23: 0.025 | AS23: 0.025 | AT23: 0.025 | AU23: =AU31 -> 0.025 | AV23: =AV31 -> 0.025 | AW23: 0.025 | AX23: 0.025 | AY23: 0.025 | AZ23: 0.025 | BA23: 0.025 | BB23: 0.025 | BC23: 0.025 | BD23: 0.025
B24: Cumulative actual inflation factor (from start of period) | G24: =1+G23 -> 1.025 | H24: =G24*(1+H23) -> 1.050625 | I24: =H24*(1+I23) -> 1.076890625 | J24: =I24*(1+J23) -> 1.103812891 | K24: =J24*(1+K23) -> 1.131408213 | L24: =1+L23 -> 1.025 | M24: =L24*(1+M23) -> 1.050625 | N24: =M24*(1+N23) -> 1.076890625 | O24: 1.103812891 | P24: 1.131408213 | Q24: =1+Q23 -> 1.025 | R24: =Q24*(1+R23) -> 1.050625 | S24: =R24*(1+S23) -> 1.076890625 | T24: =S24*(1+T23) -> 1.103812891 | U24: =T24*(1+U23) -> 1.131408213 | V24: =1+V23 -> 1.025 | W24: =V24*(1+W23) -> 1.050625 | X24: =W24*(1+X23) -> 1.076890625 | Y24: =X24*(1+Y23) -> 1.103812891 | Z24: =Y24*(1+Z23) -> 1.131408213 | AA24: =1+AA23 -> 1.025 | AB24: =AA24*(1+AB23) -> 1.050625 | AC24: =AB24*(1+AC23) -> 1.076890625 | AD24: =AC24*(1+AD23) -> 1.103812891 | AE24: =AD24*(1+AE23) -> 1.131408213 | AF24: =1+AF23 -> 1.025 | AG24: =AF24*(1+AG23) -> 1.050625 | AH24: =AG24*(1+AH23) -> 1.076890625 | AI24: =AH24*(1+AI23) -> 1.103812891 | AJ24: =AI24*(1+AJ23) -> 1.131408213 | AK24: =1+AK23 -> 1.025 | AL24: =AK24*(1+AL23) -> 1.050625 | AM24: =AL24*(1+AM23) -> 1.076890625 | AN24: =AM24*(1+AN23) -> 1.103812891 | AO24: =AN24*(1+AO23) -> 1.131408213 | AP24: =1+AP23 -> 1.025 | AQ24: =AP24*(1+AQ23) -> 1.050625 | AR24: =AQ24*(1+AR23) -> 1.076890625 | AS24: =AR24*(1+AS23) -> 1.103812891 | AT24: =AS24*(1+AT23) -> 1.131408213 | AU24: =1+AU23 -> 1.025 | AV24: =AU24*(1+AV23) -> 1.050625 | AW24: =AV24*(1+AW23) -> 1.076890625 | AX24: =AW24*(1+AX23) -> 1.103812891 | AY24: =AX24*(1+AY23) -> 1.131408213 | AZ24: =1+AZ23 -> 1.025 | BA24: =AZ24*(1+BA23) -> 1.050625 | BB24: =BA24*(1+BB23) -> 1.076890625 | BC24: 1.103812891 | BD24: 1.131408213
B25: Cumulative actual inflation factor (from start of Year 1) | G25: =1+G23 -> 1.025 | H25: =G25*(1+H23) -> 1.050625 | I25: =H25*(1+I23) -> 1.076890625 | J25: 1.103812891 | K25: 1.131408213 | L25: 1.159693418 | M25: 1.188685754 | N25: 1.218402898 | O25: 1.24886297 | P25: 1.280084544 | Q25: 1.312086658 | R25: 1.344888824 | S25: 1.378511045 | T25: 1.412973821 | U25: 1.448298166 | V25: 1.484505621 | W25: 1.521618261 | X25: 1.559658718 | Y25: 1.598650186 | Z25: 1.63861644 | AA25: 1.679581851 | AB25: 1.721571398 | AC25: 1.764610683 | AD25: 1.80872595 | AE25: 1.853944098 | AF25: 1.900292701 | AG25: 1.947800018 | AH25: 1.996495019 | AI25: 2.046407394 | AJ25: 2.097567579 | AK25: 2.150006769 | AL25: 2.203756938 | AM25: 2.258850861 | AN25: 2.315322133 | AO25: 2.373205186 | AP25: 2.432535316 | AQ25: 2.493348699 | AR25: 2.555682416 | AS25: 2.619574476 | AT25: 2.685063838 | AU25: 2.752190434 | AV25: 2.820995195 | AW25: 2.891520075 | AX25: 2.963808077 | AY25: 3.037903279 | AZ25: 3.113850861 | BA25: 3.191697132 | BB25: 3.271489561 | BC25: 3.3532768 | BD25: 3.43710872
B27: Inflation used in revenue and other calculations
B28: Expected inflation | G28: 0.025 | L28: 0.025 | Q28: 0.025 | V28: 0.025 | AA28: 0.025 | AF28: 0.025 | AK28: 0.025 | AP28: 0.025 | AU28: 0.025 | AZ28: 0.025
B29: Cumulative expected inflation factor (from start of period) | G29: =1+G28 -> 1.025 | H29: =G29*(1+$G$28) -> 1.050625 | I29: =H29*(1+$G$28) -> 1.076890625 | J29: =I29*(1+$G$28) -> 1.103812891 | K29: =J29*(1+$G$28) -> 1.131408213 | L29: =1+L28 -> 1.025 | M29: =L29*(1+$L$28) -> 1.050625 | N29: =M29*(1+$L$28) -> 1.076890625 | O29: =N29*(1+$L$28) -> 1.103812891 | P29: =O29*(1+$L$28) -> 1.131408213 | Q29: =1+Q28 -> 1.025 | R29: =Q29*(1+$L$28) -> 1.050625 | S29: =R29*(1+$L$28) -> 1.076890625 | T29: =S29*(1+$L$28) -> 1.103812891 | U29: =T29*(1+$L$28) -> 1.131408213 | V29: =1+V28 -> 1.025 | W29: =V29*(1+$L$28) -> 1.050625 | X29: =W29*(1+$L$28) -> 1.076890625 | Y29: =X29*(1+$L$28) -> 1.103812891 | Z29: =Y29*(1+$L$28) -> 1.131408213 | AA29: =1+AA28 -> 1.025 | AB29: =AA29*(1+$L$28) -> 1.050625 | AC29: =AB29*(1+$L$28) -> 1.076890625 | AD29: =AC29*(1+$L$28) -> 1.103812891 | AE29: =AD29*(1+$L$28) -> 1.131408213 | AF29: =1+AF28 -> 1.025 | AG29: =AF29*(1+$L$28) -> 1.050625 | AH29: =AG29*(1+$L$28) -> 1.076890625 | AI29: =AH29*(1+$L$28) -> 1.103812891 | AJ29: =AI29*(1+$L$28) -> 1.131408213 | AK29: =1+AK28 -> 1.025 | AL29: =AK29*(1+$L$28) -> 1.050625 | AM29: =AL29*(1+$L$28) -> 1.076890625 | AN29: =AM29*(1+$L$28) -> 1.103812891 | AO29: =AN29*(1+$L$28) -> 1.131408213 | AP29: =1+AP28 -> 1.025 | AQ29: =AP29*(1+$L$28) -> 1.050625 | AR29: =AQ29*(1+$L$28) -> 1.076890625 | AS29: =AR29*(1+$L$28) -> 1.103812891 | AT29: =AS29*(1+$L$28) -> 1.131408213 | AU29: =1+AU28 -> 1.025 | AV29: =AU29*(1+$L$28) -> 1.050625 | AW29: =AV29*(1+$L$28) -> 1.076890625 | AX29: =AW29*(1+$L$28) -> 1.103812891 | AY29: =AX29*(1+$L$28) -> 1.131408213 | AZ29: =1+AZ28 -> 1.025 | BA29: =AZ29*(1+$AZ$28) -> 1.050625 | BB29: =BA29*(1+$AZ$28) -> 1.076890625 | BC29: =BB29*(1+$AZ$28) -> 1.103812891 | BD29: =BC29*(1+$AZ$28) -> 1.131408213
B30: Cumulative expected inflation factor (from start of Year 1) | G30: =1+G28 -> 1.025 | H30: =G30*(1+$G$28) -> 1.050625 | I30: =H30*(1+$G$28) -> 1.076890625 | J30: 1.103812891 | K30: 1.131408213 | L30: =K33*(1+$L$28) -> 1.159693418 | M30: =L30*(1+$L$28) -> 1.188685754 | N30: 1.218402898 | O30: 1.24886297 | P30: 1.280084544 | Q30: =P33*(1+$Q$28) -> 1.312086658 | R30: =Q30*(1+$Q$28) -> 1.344888824 | S30: 1.378511045 | T30: 1.412973821 | U30: 1.448298166 | V30: =U33*(1+$V$28) -> 1.484505621 | W30: =V30*(1+$V$28) -> 1.521618261 | X30: 1.559658718 | Y30: 1.598650186 | Z30: 1.63861644 | AA30: =Z33*(1+$AA$28) -> 1.679581851 | AB30: =AA30*(1+$AA$28) -> 1.721571398 | AC30: 1.764610683 | AD30: 1.80872595 | AE30: 1.853944098 | AF30: =AE33*(1+$AF$28) -> 1.900292701 | AG30: =AF30*(1+$AF$28) -> 1.947800018 | AH30: 1.996495019 | AI30: 2.046407394 | AJ30: 2.097567579 | AK30: =AJ33*(1+$AK$28) -> 2.150006769 | AL30: =AK30*(1+$AK$28) -> 2.203756938 | AM30: 2.258850861 | AN30: 2.315322133 | AO30: 2.373205186 | AP30: =AO33*(1+$AP$28) -> 2.432535316 | AQ30: =AP30*(1+$AP$28) -> 2.493348699 | AR30: 2.555682416 | AS30: 2.619574476 | AT30: 2.685063838 | AU30: =AT33*(1+$AU$28) -> 2.752190434 | AV30: =AU30*(1+$AU$28) -> 2.820995195 | AW30: 2.891520075 | AX30: 2.963808077 | AY30: 3.037903279 | AZ30: =AY33*(1+$AZ$28) -> 3.113850861 | BA30: =AZ30*(1+$AZ$28) -> 3.191697132 | BB30: 3.271489561 | BC30: 3.3532768 | BD30: 3.43710872
B31: Actual inflation | G31: 0.025 | H31: 0.025 | I31: 0.025 | J31: 0.025 | K31: 0.025 | L31: 0.025 | M31: =L31 -> 0.025 | N31: =M31 -> 0.025 | O31: 0.025 | P31: 0.025 | Q31: 0.025 | R31: 0.025 | S31: 0.025 | T31: 0.025 | U31: 0.025 | V31: 0.025 | W31: 0.025 | X31: 0.025 | Y31: 0.025 | Z31: 0.025 | AA31: 0.025 | AB31: 0.025 | AC31: 0.025 | AD31: 0.025 | AE31: 0.025 | AF31: 0.025 | AG31: 0.025 | AH31: 0.025 | AI31: 0.025 | AJ31: 0.025 | AK31: 0.025 | AL31: 0.025 | AM31: 0.025 | AN31: 0.025 | AO31: 0.025 | AP31: 0.025 | AQ31: 0.025 | AR31: 0.025 | AS31: 0.025 | AT31: 0.025 | AU31: 0.025 | AV31: =AU31 -> 0.025 | AW31: =AV31 -> 0.025 | AX31: 0.025 | AY31: 0.025 | AZ31: 0.025 | BA31: 0.025 | BB31: 0.025 | BC31: 0.025 | BD31: 0.025
B32: Cumulative actual inflation factor (from start of period) | G32: =1+G31 -> 1.025 | H32: =G32*(1+H31) -> 1.050625 | I32: =H32*(1+I31) -> 1.076890625 | J32: =I32*(1+J31) -> 1.103812891 | K32: =J32*(1+K31) -> 1.131408213 | L32: =1+L31 -> 1.025 | M32: =L32*(1+M31) -> 1.050625 | N32: =M32*(1+N31) -> 1.076890625 | O32: =N32*(1+O31) -> 1.103812891 | P32: =O32*(1+P31) -> 1.131408213 | Q32: =1+Q31 -> 1.025 | R32: =Q32*(1+R31) -> 1.050625 | S32: =R32*(1+S31) -> 1.076890625 | T32: =S32*(1+T31) -> 1.103812891 | U32: =T32*(1+U31) -> 1.131408213 | V32: =1+V31 -> 1.025 | W32: =V32*(1+W31) -> 1.050625 | X32: =W32*(1+X31) -> 1.076890625 | Y32: =X32*(1+Y31) -> 1.103812891 | Z32: =Y32*(1+Z31) -> 1.131408213 | AA32: =1+AA31 -> 1.025 | AB32: =AA32*(1+AB31) -> 1.050625 | AC32: =AB32*(1+AC31) -> 1.076890625 | AD32: =AC32*(1+AD31) -> 1.103812891 | AE32: =AD32*(1+AE31) -> 1.131408213 | AF32: =1+AF31 -> 1.025 | AG32: =AF32*(1+AG31) -> 1.050625 | AH32: =AG32*(1+AH31) -> 1.076890625 | AI32: =AH32*(1+AI31) -> 1.103812891 | AJ32: =AI32*(1+AJ31) -> 1.131408213 | AK32: =1+AK31 -> 1.025 | AL32: =AK32*(1+AL31) -> 1.050625 | AM32: =AL32*(1+AM31) -> 1.076890625 | AN32: =AM32*(1+AN31) -> 1.103812891 | AO32: =AN32*(1+AO31) -> 1.131408213 | AP32: =1+AP31 -> 1.025 | AQ32: =AP32*(1+AQ31) -> 1.050625 | AR32: =AQ32*(1+AR31) -> 1.076890625 | AS32: =AR32*(1+AS31) -> 1.103812891 | AT32: =AS32*(1+AT31) -> 1.131408213 | AU32: =1+AU31 -> 1.025 | AV32: =AU32*(1+AV31) -> 1.050625 | AW32: =AV32*(1+AW31) -> 1.076890625 | AX32: =AW32*(1+AX31) -> 1.103812891 | AY32: =AX32*(1+AY31) -> 1.131408213 | AZ32: =1+AZ31 -> 1.025 | BA32: =AZ32*(1+BA31) -> 1.050625 | BB32: =BA32*(1+BB31) -> 1.076890625 | BC32: =BB32*(1+BC31) -> 1.103812891 | BD32: =BC32*(1+BD31) -> 1.131408213
B33: Cumulative actual inflation factor (from start of Year 1) | G33: =1+G31 -> 1.025 | H33: =G33*(1+H31) -> 1.050625 | I33: =H33*(1+I31) -> 1.076890625 | J33: 1.103812891 | K33: 1.131408213 | L33: 1.159693418 | M33: 1.188685754 | N33: 1.218402898 | O33: 1.24886297 | P33: 1.280084544 | Q33: 1.312086658 | R33: 1.344888824 | S33: 1.378511045 | T33: 1.412973821 | U33: 1.448298166 | V33: 1.484505621 | W33: 1.521618261 | X33: 1.559658718 | Y33: 1.598650186 | Z33: 1.63861644 | AA33: 1.679581851 | AB33: 1.721571398 | AC33: 1.764610683 | AD33: 1.80872595 | AE33: 1.853944098 | AF33: 1.900292701 | AG33: 1.947800018 | AH33: 1.996495019 | AI33: 2.046407394 | AJ33: 2.097567579 | AK33: 2.150006769 | AL33: 2.203756938 | AM33: 2.258850861 | AN33: 2.315322133 | AO33: 2.373205186 | AP33: 2.432535316 | AQ33: 2.493348699 | AR33: 2.555682416 | AS33: 2.619574476 | AT33: 2.685063838 | AU33: 2.752190434 | AV33: 2.820995195 | AW33: 2.891520075 | AX33: 2.963808077 | AY33: 3.037903279 | AZ33: 3.113850861 | BA33: 3.191697132 | BB33: 3.271489561 | BC33: 3.3532768 | BD33: 3.43710872
B35: Rate of return
B36: Real return on equity | G36: 0.05365853659 | L36: 0.05365853659 | Q36: 0.05365853659 | V36: 0.05365853659 | AA36: 0.05365853659 | AF36: 0.05365853659 | AK36: 0.05365853659 | AP36: 0.05365853659 | AU36: 0.05365853659 | AZ36: 0.05365853659
B37: Real return on debt | G37: 0.03414634146 | L37: 0.03414634146 | Q37: 0.03414634146 | V37: 0.03414634146 | AA37: 0.03414634146 | AF37: 0.03414634146 | AK37: 0.03414634146 | AP37: 0.03414634146 | AU37: 0.03414634146 | AZ37: 0.03414634146
B38: Inflation expectations embedded in nominal rate of return on equity | G38: 0.025 | L38: 0.025 | Q38: 0.025 | V38: 0.025 | AA38: 0.025 | AF38: 0.025 | AK38: 0.025 | AP38: 0.025 | AU38: 0.025 | AZ38: 0.025
B39: Inflation expectations embedded in nominal rate of return on debt | G39: 0.025 | L39: 0.025 | Q39: 0.025 | V39: 0.025 | AA39: 0.025 | AF39: 0.025 | AK39: 0.025 | AP39: 0.025 | AU39: 0.025 | AZ39: 0.025
B40: Nominal return on equity | G40: =(1+G36)*(1+G38)-1 -> 0.08 | L40: =(1+L36)*(1+L38)-1 -> 0.08 | Q40: =(1+Q36)*(1+Q38)-1 -> 0.08 | V40: =(1+V36)*(1+V38)-1 -> 0.08 | AA40: =(1+AA36)*(1+AA38)-1 -> 0.08 | AF40: =(1+AF36)*(1+AF38)-1 -> 0.08 | AK40: =(1+AK36)*(1+AK38)-1 -> 0.08 | AP40: =(1+AP36)*(1+AP38)-1 -> 0.08 | AU40: =(1+AU36)*(1+AU38)-1 -> 0.08 | AZ40: =(1+AZ36)*(1+AZ38)-1 -> 0.08
B41: Nominal return on debt | G41: =(1+G37)*(1+G39)-1 -> 0.06 | L41: =(1+L37)*(1+L39)-1 -> 0.06 | Q41: =(1+Q37)*(1+Q39)-1 -> 0.06 | V41: =(1+V37)*(1+V39)-1 -> 0.06 | AA41: =(1+AA37)*(1+AA39)-1 -> 0.06 | AF41: =(1+AF37)*(1+AF39)-1 -> 0.06 | AK41: =(1+AK37)*(1+AK39)-1 -> 0.06 | AP41: =(1+AP37)*(1+AP39)-1 -> 0.06 | AU41: =(1+AU37)*(1+AU39)-1 -> 0.06 | AZ41: =(1+AZ37)*(1+AZ39)-1 -> 0.06
B42: Debt to total assets ratio | G42: 0.6 | L42: 0.6 | Q42: 0.6 | V42: 0.6 | AA42: 0.6 | AF42: 0.6 | AK42: 0.6 | AP42: 0.6 | AU42: 0.6 | AZ42: 0.6
B43: Nominal vanilla WACC | G43: =G40*(1-G42)+G41*G42 -> 0.068 | L43: =L40*(1-L42)+L41*L42 -> 0.068 | Q43: =Q40*(1-Q42)+Q41*Q42 -> 0.068 | V43: =V40*(1-V42)+V41*V42 -> 0.068 | AA43: =AA40*(1-AA42)+AA41*AA42 -> 0.068 | AF43: =AF40*(1-AF42)+AF41*AF42 -> 0.068 | AK43: =AK40*(1-AK42)+AK41*AK42 -> 0.068 | AP43: =AP40*(1-AP42)+AP41*AP42 -> 0.068 | AU43: =AU40*(1-AU42)+AU41*AU42 -> 0.068 | AZ43: =AZ40*(1-AZ42)+AZ41*AZ42 -> 0.068
B45: Tax
B46: Tax rate | G46: 0.3 | L46: 0.3 | Q46: 0.3 | V46: 0.3 | AA46: 0.3 | AF46: 0.3 | AK46: 0.3 | AP46: 0.3 | AU46: 0.3 | AZ46: 0.3
B47: Value of imputation credits | G47: 0.4 | L47: 0.4 | Q47: 0.4 | V47: 0.4 | AA47: 0.4 | AF47: 0.4 | AK47: 0.4 | AP47: 0.4 | AU47: 0.4 | AZ47: 0.4
B50: Asset accounting
B52: Without inflation adjustment of the asset base
B53: Asset base (start of year) | D53: $ | G53: =E16 -> 100 | H53: =G55 -> 98 | I53: =H55 -> 96 | J53: 94 | K53: 92 | L53: 90 | M53: 88 | N53: 86 | O53: 84 | P53: 82 | Q53: =P55 -> 80 | R53: =Q55 -> 78 | S53: =R55 -> 76 | T53: =S55 -> 74 | U53: =T55 -> 72 | V53: =U55 -> 70 | W53: =V55 -> 68 | X53: =W55 -> 66 | Y53: =X55 -> 64 | Z53: =Y55 -> 62 | AA53: =Z55 -> 60 | AB53: =AA55 -> 58 | AC53: =AB55 -> 56 | AD53: =AC55 -> 54 | AE53: =AD55 -> 52 | AF53: =AE55 -> 50 | AG53: =AF55 -> 48 | AH53: =AG55 -> 46 | AI53: =AH55 -> 44 | AJ53: =AI55 -> 42 | AK53: =AJ55 -> 40 | AL53: =AK55 -> 38 | AM53: =AL55 -> 36 | AN53: =AM55 -> 34 | AO53: =AN55 -> 32 | AP53: =AO55 -> 30 | AQ53: =AP55 -> 28 | AR53: =AQ55 -> 26 | AS53: =AR55 -> 24 | AT53: =AS55 -> 22 | AU53: =AT55 -> 20 | AV53: =AU55 -> 18 | AW53: =AV55 -> 16 | AX53: =AW55 -> 14 | AY53: =AX55 -> 12 | AZ53: =AY55 -> 10 | BA53: =AZ55 -> 8 | BB53: =BA55 -> 6 | BC53: =BB55 -> 4 | BD53: =BC55 -> 2
B54: Straight line depreciation | D54: $ | G54: =E16/E17 -> 2 | H54: =G54 -> 2 | I54: =H54 -> 2 | J54: 2 | K54: 2 | L54: 2 | M54: 2 | N54: 2 | O54: 2 | P54: 2 | Q54: =P54 -> 2 | R54: =Q54 -> 2 | S54: =R54 -> 2 | T54: =S54 -> 2 | U54: =T54 -> 2 | V54: =U54 -> 2 | W54: =V54 -> 2 | X54: =W54 -> 2 | Y54: =X54 -> 2 | Z54: =Y54 -> 2 | AA54: =Z54 -> 2 | AB54: =AA54 -> 2 | AC54: =AB54 -> 2 | AD54: =AC54 -> 2 | AE54: =AD54 -> 2 | AF54: =AE54 -> 2 | AG54: =AF54 -> 2 | AH54: =AG54 -> 2 | AI54: =AH54 -> 2 | AJ54: =AI54 -> 2 | AK54: =AJ54 -> 2 | AL54: =AK54 -> 2 | AM54: =AL54 -> 2 | AN54: =AM54 -> 2 | AO54: =AN54 -> 2 | AP54: =AO54 -> 2 | AQ54: =AP54 -> 2 | AR54: =AQ54 -> 2 | AS54: =AR54 -> 2 | AT54: =AS54 -> 2 | AU54: =AT54 -> 2 | AV54: =AU54 -> 2 | AW54: =AV54 -> 2 | AX54: =AW54 -> 2 | AY54: =AX54 -> 2 | AZ54: =AY54 -> 2 | BA54: =AZ54 -> 2 | BB54: =BA54 -> 2 | BC54: =BB54 -> 2 | BD54: =BC54 -> 2
B55: Asset base (end of year) | D55: $ | G55: =G53-G54 -> 98 | H55: =H53-H54 -> 96 | I55: 94 | J55: 92 | K55: 90 | L55: 88 | M55: 86 | N55: 84 | O55: 82 | P55: 80 | Q55: =Q53-Q54 -> 78 | R55: 76 | S55: 74 | T55: 72 | U55: 70 | V55: 68 | W55: 66 | X55: 64 | Y55: 62 | Z55: 60 | AA55: 58 | AB55: 56 | AC55: 54 | AD55: 52 | AE55: 50 | AF55: 48 | AG55: 46 | AH55: 44 | AI55: 42 | AJ55: 40 | AK55: 38 | AL55: 36 | AM55: 34 | AN55: 32 | AO55: 30 | AP55: 28 | AQ55: 26 | AR55: 24 | AS55: 22 | AT55: 20 | AU55: 18 | AV55: 16 | AW55: 14 | AX55: 12 | AY55: 10 | AZ55: 8 | BA55: 6 | BB55: 4 | BC55: 2 | BD55: 0
B57: With inflation adjustment of asset base
B58: Asset base (start of year) | D58: $ | G58: =G53 -> 100 | H58: =G62 -> 100.45 | I58: =H62 -> 100.86 | J58: =I62 -> 101.2277187 | K58: =J62 -> 101.5507859 | L58: =K69 -> 101.8267392 | M58: =L62 -> 102.0530208 | N58: =M62 -> 102.2269748 | O58: 102.3458434 | P58: 102.4067635 | Q58: =P69 -> 102.4067635 | R58: =Q62 -> 102.3427593 | S58: =R62 -> 102.2115506 | T58: 102.0098173 | U58: 101.7341151 | V58: =U69 -> 101.3808717 | W58: =V62 -> 100.9463822 | X58: =W62 -> 100.4268052 | Y58: 99.81815793 | Z58: 99.11631151 | AA58: =Z69 -> 98.31698642 | AB58: =AA62 -> 97.41574738 | AC58: =AB62 -> 96.40799826 | AD58: 95.28897686 | AE58: 94.05374938 | AF58: =AE69 -> 92.69720492 | AG58: =AF62 -> 91.21404964 | AH58: =AG62 -> 89.59880084 | AI58: 87.84578083 | AJ58: 85.94911056 | AK58: =AJ69 -> 83.90270316 | AL58: =AK62 -> 81.70025721 | AM58: =AL62 -> 79.33524976 | AN58: 76.80092928 | AO58: 74.09030825 | AP58: =AO69 -> 71.19615558 | AQ58: =AP62 -> 68.11098884 | AR58: =AQ62 -> 64.82706616 | AS58: 61.33637799 | AT58: 57.63063848 | AU58: =AT69 -> 53.70127677 | AV58: =AU62 -> 49.53942782 | AW58: =AV62 -> 45.13592312 | AX58: 40.48128105 | AY58: 35.56569692 | AZ58: =AY69 -> 30.37903279 | BA58: =AZ62 -> 24.91080689 | BB58: =BA62 -> 19.15018279 | BC58: 13.08595824 | BD58: 6.706553599
B59: Inflation adjustment of asset base (start of year) | D59: $ | G59: =$G$20*G58 -> 2.5 | H59: =$G$20*H58 -> 2.51125 | I59: 2.5215 | J59: 2.530692969 | K59: 2.538769648 | L59: =$L$20*L58 -> 2.545668479 | M59: =$L$20*M58 -> 2.55132552 | N59: =$L$20*N58 -> 2.55567437 | O59: 2.558646085 | P59: 2.560169088 | Q59: =$Q$20*Q58 -> 2.560169088 | R59: =$Q$20*R58 -> 2.558568983 | S59: 2.555288766 | T59: 2.550245433 | U59: 2.543352878 | V59: =$V$20*V58 -> 2.534521791 | W59: =$V$20*W58 -> 2.523659555 | X59: 2.510670131 | Y59: 2.495453948 | Z59: 2.477907788 | AA59: =$AA$20*AA58 -> 2.45792466 | AB59: =$AA$20*AB58 -> 2.435393684 | AC59: 2.410199957 | AD59: 2.382224421 | AE59: 2.351343734 | AF59: =$AF$20*AF58 -> 2.317430123 | AG59: =$AF$20*AG58 -> 2.280351241 | AH59: 2.239970021 | AI59: 2.196144521 | AJ59: 2.148727764 | AK59: =$AK$20*AK58 -> 2.097567579 | AL59: =$AK$20*AL58 -> 2.04250643 | AM59: 1.983381244 | AN59: 1.920023232 | AO59: 1.852257706 | AP59: =$AP$20*AP58 -> 1.77990389 | AQ59: =$AP$20*AQ58 -> 1.702774721 | AR59: 1.620676654 | AS59: 1.53340945 | AT59: 1.440765962 | AU59: =$AU$20*AU58 -> 1.342531919 | AV59: =$AU$20*AV58 -> 1.238485695 | AW59: 1.128398078 | AX59: 1.012032026 | AY59: 0.8891424231 | AZ59: =$AZ$20*AZ58 -> 0.7594758197 | BA59: =$AZ$20*BA58 -> 0.6227701722 | BB59: 0.4787545699 | BC59: 0.3271489561 | BD59: 0.16766384
B60: Inflation adjusted straight line depreciation | D60: $ | G60: =G22*G54 -> 2.05 | H60: =H22*H54 -> 2.10125 | I60: 2.15378125 | J60: 2.207625781 | K60: 2.262816426 | L60: 2.319386836 | M60: 2.377371507 | N60: 2.436805795 | O60: 2.49772594 | P60: 2.560169088 | Q60: 2.624173316 | R60: 2.689777648 | S60: 2.75702209 | T60: 2.825947642 | U60: 2.896596333 | V60: 2.969011241 | W60: 3.043236522 | X60: 3.119317435 | Y60: 3.197300371 | Z60: 3.277232881 | AA60: 3.359163703 | AB60: 3.443142795 | AC60: 3.529221365 | AD60: 3.617451899 | AE60: 3.707888197 | AF60: 3.800585402 | AG60: 3.895600037 | AH60: 3.992990038 | AI60: 4.092814788 | AJ60: 4.195135158 | AK60: 4.300013537 | AL60: 4.407513876 | AM60: 4.517701722 | AN60: 4.630644265 | AO60: 4.746410372 | AP60: 4.865070631 | AQ60: 4.986697397 | AR60: 5.111364832 | AS60: 5.239148953 | AT60: 5.370127677 | AU60: 5.504380869 | AV60: 5.64199039 | AW60: 5.78304015 | AX60: 5.927616154 | AY60: 6.075806558 | AZ60: 6.227701722 | BA60: 6.383394265 | BB60: 6.542979121 | BC60: 6.706553599 | BD60: 6.874217439
B61: Regulatory depreciation | D61: $ | E61: =SUM(G61:BD61) -> 100 | G61: =G60-G59 -> -0.45 | H61: =H60-H59 -> -0.41 | I61: -0.36771875 | J61: -0.3230671875 | K61: -0.2759532227 | L61: -0.2262816426 | M61: -0.1739540127 | N61: -0.1188685754 | O61: -0.06092014488 | P61: 0 | Q61: 0.06400422721 | R61: 0.1312086658 | S61: 0.2017333236 | T61: 0.275702209 | U61: 0.3532434552 | V61: 0.4344894499 | W61: 0.5195769672 | X61: 0.6086473045 | Y61: 0.701846423 | Z61: 0.7993250928 | AA61: 0.9012390422 | AB61: 1.007749111 | AC61: 1.119021408 | AD61: 1.235227478 | AE61: 1.356544462 | AF61: 1.483155279 | AG61: 1.615248796 | AH61: 1.753020016 | AI61: 1.896670268 | AJ61: 2.046407394 | AK61: 2.202445958 | AL61: 2.365007445 | AM61: 2.534320478 | AN61: 2.710621033 | AO61: 2.894152666 | AP61: 3.085166742 | AQ61: 3.283922676 | AR61: 3.490688178 | AS61: 3.705739503 | AT61: 3.929361715 | AU61: 4.16184895 | AV61: 4.403504695 | AW61: 4.654642072 | AX61: 4.915584128 | AY61: 5.186664135 | AZ61: 5.468225902 | BA61: 5.760624093 | BB61: 6.064224552 | BC61: 6.379404643 | BD61: 6.706553599
B62: Asset base (end of year) | D62: $ | G62: =G58-G61 -> 100.45 | H62: =H58-H61 -> 100.86 | I62: 101.2277187 | J62: 101.5507859 | K62: 101.8267392 | L62: 102.0530208 | M62: 102.2269748 | N62: 102.3458434 | O62: 102.4067635 | P62: 102.4067635 | Q62: 102.3427593 | R62: 102.2115506 | S62: 102.0098173 | T62: 101.7341151 | U62: 101.3808717 | V62: 100.9463822 | W62: 100.4268052 | X62: 99.81815793 | Y62: 99.11631151 | Z62: 98.31698642 | AA62: 97.41574738 | AB62: 96.40799826 | AC62: 95.28897686 | AD62: 94.05374938 | AE62: 92.69720492 | AF62: 91.21404964 | AG62: 89.59880084 | AH62: 87.84578083 | AI62: 85.94911056 | AJ62: 83.90270316 | AK62: 81.70025721 | AL62: 79.33524976 | AM62: 76.80092928 | AN62: 74.09030825 | AO62: 71.19615558 | AP62: 68.11098884 | AQ62: 64.82706616 | AR62: 61.33637799 | AS62: 57.63063848 | AT62: 53.70127677 | AU62: 49.53942782 | AV62: 45.13592312 | AW62: 40.48128105 | AX62: 35.56569692 | AY62: 30.37903279 | AZ62: 24.91080689 | BA62: 19.15018279 | BB62: 13.08595824 | BC62: 6.706553599 | BD62: 7.140954494e-13
B64: Roll forward with actual inflation adjustment
B65: Asset base (start of year) | D65: $ | G65: =G53 -> 100 | H65: =G69 -> 100.45 | I65: =H69 -> 100.86 | J65: 101.2277187 | K65: 101.5507859 | L65: =K69 -> 101.8267392 | M65: =L69 -> 102.0530208 | N65: 102.2269748 | O65: 102.3458434 | P65: 102.4067635 | Q65: =P69 -> 102.4067635 | R65: =Q69 -> 102.3427593 | S65: =R69 -> 102.2115506 | T65: =S69 -> 102.0098173 | U65: =T69 -> 101.7341151 | V65: =U69 -> 101.3808717 | W65: =V69 -> 100.9463822 | X65: =W69 -> 100.4268052 | Y65: =X69 -> 99.81815793 | Z65: =Y69 -> 99.11631151 | AA65: =Z69 -> 98.31698642 | AB65: =AA69 -> 97.41574738 | AC65: =AB69 -> 96.40799826 | AD65: =AC69 -> 95.28897686 | AE65: =AD69 -> 94.05374938 | AF65: =AE69 -> 92.69720492 | AG65: =AF69 -> 91.21404964 | AH65: =AG69 -> 89.59880084 | AI65: =AH69 -> 87.84578083 | AJ65: =AI69 -> 85.94911056 | AK65: =AJ69 -> 83.90270316 | AL65: =AK69 -> 81.70025721 | AM65: =AL69 -> 79.33524976 | AN65: =AM69 -> 76.80092928 | AO65: =AN69 -> 74.09030825 | AP65: =AO69 -> 71.19615558 | AQ65: =AP69 -> 68.11098884 | AR65: =AQ69 -> 64.82706616 | AS65: =AR69 -> 61.33637799 | AT65: =AS69 -> 57.63063848 | AU65: =AT69 -> 53.70127677 | AV65: =AU69 -> 49.53942782 | AW65: =AV69 -> 45.13592312 | AX65: =AW69 -> 40.48128105 | AY65: =AX69 -> 35.56569692 | AZ65: =AY69 -> 30.37903279 | BA65: =AZ69 -> 24.91080689 | BB65: =BA69 -> 19.15018279 | BC65: =BB69 -> 13.08595824 | BD65: =BC69 -> 6.706553599
B66: Inflation adjustment of asset base (start of year) | D66: $ | G66: =G23*G65 -> 2.5 | H66: =H23*H65 -> 2.51125 | I66: 2.5215 | J66: 2.530692969 | K66: 2.538769648 | L66: 2.545668479 | M66: 2.55132552 | N66: 2.55567437 | O66: 2.558646085 | P66: 2.560169088 | Q66: 2.560169088 | R66: 2.558568983 | S66: 2.555288766 | T66: 2.550245433 | U66: 2.543352878 | V66: 2.534521791 | W66: 2.523659555 | X66: 2.510670131 | Y66: 2.495453948 | Z66: 2.477907788 | AA66: 2.45792466 | AB66: 2.435393684 | AC66: 2.410199957 | AD66: 2.382224421 | AE66: 2.351343734 | AF66: 2.317430123 | AG66: 2.280351241 | AH66: 2.239970021 | AI66: 2.196144521 | AJ66: 2.148727764 | AK66: 2.097567579 | AL66: 2.04250643 | AM66: 1.983381244 | AN66: 1.920023232 | AO66: 1.852257706 | AP66: 1.77990389 | AQ66: 1.702774721 | AR66: 1.620676654 | AS66: 1.53340945 | AT66: 1.440765962 | AU66: 1.342531919 | AV66: 1.238485695 | AW66: 1.128398078 | AX66: 1.012032026 | AY66: 0.8891424231 | AZ66: 0.7594758197 | BA66: 0.6227701722 | BB66: 0.4787545699 | BC66: 0.3271489561 | BD66: 0.16766384
B67: Inflation adjusted straight line depreciation | D67: $ | G67: =G25*G54 -> 2.05 | H67: =H25*H54 -> 2.10125 | I67: 2.15378125 | J67: 2.207625781 | K67: 2.262816426 | L67: 2.319386836 | M67: 2.377371507 | N67: 2.436805795 | O67: 2.49772594 | P67: 2.560169088 | Q67: 2.624173316 | R67: 2.689777648 | S67: 2.75702209 | T67: 2.825947642 | U67: 2.896596333 | V67: 2.969011241 | W67: 3.043236522 | X67: 3.119317435 | Y67: 3.197300371 | Z67: 3.277232881 | AA67: 3.359163703 | AB67: 3.443142795 | AC67: 3.529221365 | AD67: 3.617451899 | AE67: 3.707888197 | AF67: 3.800585402 | AG67: 3.895600037 | AH67: 3.992990038 | AI67: 4.092814788 | AJ67: 4.195135158 | AK67: 4.300013537 | AL67: 4.407513876 | AM67: 4.517701722 | AN67: 4.630644265 | AO67: 4.746410372 | AP67: 4.865070631 | AQ67: 4.986697397 | AR67: 5.111364832 | AS67: 5.239148953 | AT67: 5.370127677 | AU67: 5.504380869 | AV67: 5.64199039 | AW67: 5.78304015 | AX67: 5.927616154 | AY67: 6.075806558 | AZ67: 6.227701722 | BA67: 6.383394265 | BB67: 6.542979121 | BC67: 6.706553599 | BD67: 6.874217439
B68: Regulatory depreciation | D68: $ | E68: =SUM(G68:BD68) -> 100 | G68: =G67-G66 -> -0.45 | H68: =H67-H66 -> -0.41 | I68: -0.36771875 | J68: -0.3230671875 | K68: -0.2759532227 | L68: -0.2262816426 | M68: -0.1739540127 | N68: -0.1188685754 | O68: -0.06092014488 | P68: 0 | Q68: 0.06400422721 | R68: 0.1312086658 | S68: 0.2017333236 | T68: 0.275702209 | U68: 0.3532434552 | V68: 0.4344894499 | W68: 0.5195769672 | X68: 0.6086473045 | Y68: 0.701846423 | Z68: 0.7993250928 | AA68: 0.9012390422 | AB68: 1.007749111 | AC68: 1.119021408 | AD68: 1.235227478 | AE68: 1.356544462 | AF68: 1.483155279 | AG68: 1.615248796 | AH68: 1.753020016 | AI68: 1.896670268 | AJ68: 2.046407394 | AK68: 2.202445958 | AL68: 2.365007445 | AM68: 2.534320478 | AN68: 2.710621033 | AO68: 2.894152666 | AP68: 3.085166742 | AQ68: 3.283922676 | AR68: 3.490688178 | AS68: 3.705739503 | AT68: 3.929361715 | AU68: 4.16184895 | AV68: 4.403504695 | AW68: 4.654642072 | AX68: 4.915584128 | AY68: 5.186664135 | AZ68: 5.468225902 | BA68: 5.760624093 | BB68: 6.064224552 | BC68: 6.379404643 | BD68: 6.706553599
B69: Asset base (end of year) | D69: $ | G69: =G65-G68 -> 100.45 | H69: =H65-H68 -> 100.86 | I69: 101.2277187 | J69: 101.5507859 | K69: 101.8267392 | L69: 102.0530208 | M69: 102.2269748 | N69: 102.3458434 | O69: 102.4067635 | P69: 102.4067635 | Q69: 102.3427593 | R69: 102.2115506 | S69: 102.0098173 | T69: 101.7341151 | U69: 101.3808717 | V69: 100.9463822 | W69: 100.4268052 | X69: 99.81815793 | Y69: 99.11631151 | Z69: 98.31698642 | AA69: 97.41574738 | AB69: 96.40799826 | AC69: 95.28897686 | AD69: 94.05374938 | AE69: 92.69720492 | AF69: 91.21404964 | AG69: 89.59880084 | AH69: 87.84578083 | AI69: 85.94911056 | AJ69: 83.90270316 | AK69: 81.70025721 | AL69: 79.33524976 | AM69: 76.80092928 | AN69: 74.09030825 | AO69: 71.19615558 | AP69: 68.11098884 | AQ69: 64.82706616 | AR69: 61.33637799 | AS69: 57.63063848 | AT69: 53.70127677 | AU69: 49.53942782 | AV69: 45.13592312 | AW69: 40.48128105 | AX69: 35.56569692 | AY69: 30.37903279 | AZ69: 24.91080689 | BA69: 19.15018279 | BB69: 13.08595824 | BC69: 6.706553599 | BD69: 7.140954494e-13
B71: AER PTRM asset accounting and return calculations
B72: Inflation adjustment of asset base (start of year) | D72: $ | G72: =$G$20*G53 -> 2.5 | H72: =$G$20*G75 -> 2.51125 | I72: =$G$20*H75 -> 2.5215 | J72: 2.530692969 | K72: 2.538769648 | L72: =$L$20*K69 -> 2.545668479 | M72: =$L$20*L75 -> 2.55132552 | N72: =$L$20*M75 -> 2.55567437 | O72: 2.558646085 | P72: 2.560169088 | Q72: =$Q$20*P69 -> 2.560169088 | R72: =$Q$20*Q75 -> 2.558568983 | S72: =$Q$20*R75 -> 2.555288766 | T72: =$Q$20*S75 -> 2.550245433 | U72: =$Q$20*T75 -> 2.543352878 | V72: =$V$20*U69 -> 2.534521791 | W72: =$V$20*V75 -> 2.523659555 | X72: 2.510670131 | Y72: 2.495453948 | Z72: 2.477907788 | AA72: =$AA$20*Z69 -> 2.45792466 | AB72: =$AA$20*AA75 -> 2.435393684 | AC72: =$AA$20*AB75 -> 2.410199957 | AD72: =$AA$20*AC75 -> 2.382224421 | AE72: =$AA$20*AD75 -> 2.351343734 | AF72: =$AF$20*AE69 -> 2.317430123 | AG72: =$AF$20*AF75 -> 2.280351241 | AH72: =$AF$20*AG75 -> 2.239970021 | AI72: =$AF$20*AH75 -> 2.196144521 | AJ72: =$AF$20*AI75 -> 2.148727764 | AK72: =$AK$20*AJ69 -> 2.097567579 | AL72: =$AK$20*AK75 -> 2.04250643 | AM72: =$AK$20*AL75 -> 1.983381244 | AN72: =$AK$20*AM75 -> 1.920023232 | AO72: =$AK$20*AN75 -> 1.852257706 | AP72: =$AP$20*AO69 -> 1.77990389 | AQ72: =$AP$20*AP75 -> 1.702774721 | AR72: 1.620676654 | AS72: 1.53340945 | AT72: 1.440765962 | AU72: =$AU$20*AT69 -> 1.342531919 | AV72: =$AU$20*AU75 -> 1.238485695 | AW72: =$AU$20*AV75 -> 1.128398078 | AX72: =$AU$20*AW75 -> 1.012032026 | AY72: =$AU$20*AX75 -> 0.8891424231 | AZ72: =$AZ$20*AY69 -> 0.7594758197 | BA72: =$AZ$20*AZ75 -> 0.6227701722 | BB72: =$AZ$20*BA75 -> 0.4787545699 | BC72: =$AZ$20*BB75 -> 0.3271489561 | BD72: =$AZ$20*BC75 -> 0.16766384
B73: Inflation adjusted straight line depreciation | D73: $ | G73: =G22*G54 -> 2.05 | H73: =H22*H54 -> 2.10125 | I73: 2.15378125 | J73: 2.207625781 | K73: 2.262816426 | L73: 2.319386836 | M73: 2.377371507 | N73: 2.436805795 | O73: 2.49772594 | P73: 2.560169088 | Q73: 2.624173316 | R73: 2.689777648 | S73: 2.75702209 | T73: 2.825947642 | U73: 2.896596333 | V73: 2.969011241 | W73: 3.043236522 | X73: 3.119317435 | Y73: 3.197300371 | Z73: 3.277232881 | AA73: 3.359163703 | AB73: 3.443142795 | AC73: 3.529221365 | AD73: 3.617451899 | AE73: 3.707888197 | AF73: 3.800585402 | AG73: 3.895600037 | AH73: 3.992990038 | AI73: 4.092814788 | AJ73: 4.195135158 | AK73: 4.300013537 | AL73: 4.407513876 | AM73: 4.517701722 | AN73: 4.630644265 | AO73: 4.746410372 | AP73: 4.865070631 | AQ73: 4.986697397 | AR73: 5.111364832 | AS73: 5.239148953 | AT73: 5.370127677 | AU73: 5.504380869 | AV73: 5.64199039 | AW73: 5.78304015 | AX73: 5.927616154 | AY73: 6.075806558 | AZ73: 6.227701722 | BA73: 6.383394265 | BB73: 6.542979121 | BC73: 6.706553599 | BD73: 6.874217439
B74: Regulatory depreciation | D74: $ | E74: =SUM(G74:BD74) -> 100 | G74: =G73-G72 -> -0.45 | H74: =H73-H72 -> -0.41 | I74: -0.36771875 | J74: -0.3230671875 | K74: -0.2759532227 | L74: -0.2262816426 | M74: -0.1739540127 | N74: -0.1188685754 | O74: -0.06092014488 | P74: 0 | Q74: 0.06400422721 | R74: 0.1312086658 | S74: 0.2017333236 | T74: 0.275702209 | U74: 0.3532434552 | V74: 0.4344894499 | W74: 0.5195769672 | X74: 0.6086473045 | Y74: 0.701846423 | Z74: 0.7993250928 | AA74: 0.9012390422 | AB74: 1.007749111 | AC74: 1.119021408 | AD74: 1.235227478 | AE74: 1.356544462 | AF74: 1.483155279 | AG74: 1.615248796 | AH74: 1.753020016 | AI74: 1.896670268 | AJ74: 2.046407394 | AK74: 2.202445958 | AL74: 2.365007445 | AM74: 2.534320478 | AN74: 2.710621033 | AO74: 2.894152666 | AP74: 3.085166742 | AQ74: 3.283922676 | AR74: 3.490688178 | AS74: 3.705739503 | AT74: 3.929361715 | AU74: 4.16184895 | AV74: 4.403504695 | AW74: 4.654642072 | AX74: 4.915584128 | AY74: 5.186664135 | AZ74: 5.468225902 | BA74: 5.760624093 | BB74: 6.064224552 | BC74: 6.379404643 | BD74: 6.706553599
B75: Asset base (end of year) | D75: $ | G75: =G22*G55 -> 100.45 | H75: =H22*H55 -> 100.86 | I75: 101.2277187 | J75: 101.5507859 | K75: 101.8267392 | L75: 102.0530208 | M75: 102.2269748 | N75: 102.3458434 | O75: 102.4067635 | P75: 102.4067635 | Q75: 102.3427593 | R75: 102.2115506 | S75: 102.0098173 | T75: 101.7341151 | U75: 101.3808717 | V75: 100.9463822 | W75: 100.4268052 | X75: 99.81815793 | Y75: 99.11631151 | Z75: 98.31698642 | AA75: 97.41574738 | AB75: 96.40799826 | AC75: 95.28897686 | AD75: 94.05374938 | AE75: 92.69720492 | AF75: 91.21404964 | AG75: 89.59880084 | AH75: 87.84578083 | AI75: 85.94911056 | AJ75: 83.90270316 | AK75: 81.70025721 | AL75: 79.33524976 | AM75: 76.80092928 | AN75: 74.09030825 | AO75: 71.19615558 | AP75: 68.11098884 | AQ75: 64.82706616 | AR75: 61.33637799 | AS75: 57.63063848 | AT75: 53.70127677 | AU75: 49.53942782 | AV75: 45.13592312 | AW75: 40.48128105 | AX75: 35.56569692 | AY75: 30.37903279 | AZ75: 24.91080689 | BA75: 19.15018279 | BB75: 13.08595824 | BC75: 6.706553599 | BD75: 0
B76: Asset base (start of year) | D76: $ | G76: =G22*G53 -> 102.5 | H76: =H22*H53 -> 102.96125 | I76: 103.3815 | J76: 103.7584117 | K76: 104.0895556 | L76: 104.3724076 | M76: 104.6043463 | N76: 104.7826492 | O76: 104.9044895 | P76: 104.9669326 | Q76: 104.9669326 | R76: 104.9013283 | S76: 104.7668394 | T76: 104.5600628 | U76: 104.277468 | V76: =V22*V53 -> 103.9153934 | W76: =W22*W53 -> 103.4700418 | X76: 102.9374754 | Y76: 102.3136119 | Z76: 101.5942193 | AA76: 100.7749111 | AB76: 99.85114106 | AC76: 98.81819822 | AD76: 97.67120128 | AE76: 96.40509311 | AF76: 95.01463504 | AG76: 93.49440088 | AH76: 91.83877086 | AI76: 90.04192535 | AJ76: 88.09783832 | AK76: 86.00027074 | AL76: 83.74276364 | AM76: 81.318631 | AN76: 78.72095251 | AO76: 75.94256595 | AP76: 72.97605947 | AQ76: 69.81376356 | AR76: 66.44774282 | AS76: 62.86978744 | AT76: 59.07140444 | AU76: 55.04380869 | AV76: 50.77791351 | AW76: 46.2643212 | AX76: 41.49331308 | AY76: 36.45483935 | AZ76: 31.13850861 | BA76: 25.53357706 | BB76: 19.62893736 | BC76: 13.4131072 | BD76: 6.874217439
B77: AER return on equity calculation | D77: $ | E77: =SUM(G77:BD77) -> 127.7989312 | G77: =$G$40*(1-$G$42)*G53 -> 3.2 | H77: =$G$40*(1-$G$42)*G75 -> 3.2144 | I77: =$G$40*(1-$G$42)*H75 -> 3.22752 | J77: =$G$40*(1-$G$42)*I75 -> 3.239287 | K77: =$G$40*(1-$G$42)*J75 -> 3.24962515 | L77: =$L$40*(1-$L$42)*K69 -> 3.258455653 | M77: =$L$40*(1-$L$42)*L75 -> 3.265696666 | N77: =$L$40*(1-$L$42)*M75 -> 3.271263194 | O77: =$L$40*(1-$L$42)*N75 -> 3.275066989 | P77: =$L$40*(1-$L$42)*O75 -> 3.277016433 | Q77: =$Q$40*(1-$Q$42)*P75 -> 3.277016433 | R77: =$Q$40*(1-$Q$42)*Q75 -> 3.274968298 | S77: 3.270769621 | T77: 3.264314154 | U77: 3.255491684 | V77: =$V$40*(1-$V$42)*U75 -> 3.244187893 | W77: =$V$40*(1-$V$42)*V75 -> 3.230284231 | X77: 3.213657768 | Y77: 3.194181054 | Z77: 3.171721968 | AA77: =$AA$40*(1-$AA$42)*Z75 -> 3.146143565 | AB77: =$AA$40*(1-$AA$42)*AA75 -> 3.117303916 | AC77: 3.085055944 | AD77: 3.049247259 | AE77: 3.00971998 | AF77: =$AF$40*(1-$AF$42)*AE75 -> 2.966310557 | AG77: =$AF$40*(1-$AF$42)*AF75 -> 2.918849588 | AH77: 2.867161627 | AI77: 2.811064986 | AJ77: 2.750371538 | AK77: =$AK$40*(1-$AK$42)*AJ75 -> 2.684886501 | AL77: =$AK$40*(1-$AK$42)*AK75 -> 2.614408231 | AM77: 2.538727992 | AN77: 2.457629737 | AO77: 2.370889864 | AP77: =$AP$40*(1-$AP$42)*AO75 -> 2.278276979 | AQ77: =$AP$40*(1-$AP$42)*AP75 -> 2.179551643 | AR77: 2.074466117 | AS77: 1.962764096 | AT77: 1.844180431 | AU77: =$AU$40*(1-$AU$42)*AT75 -> 1.718440857 | AV77: =$AU$40*(1-$AU$42)*AU75 -> 1.58526169 | AW77: 1.44434954 | AX77: 1.295400994 | AY77: 1.138102302 | AZ77: =$AZ$40*(1-$AZ$42)*AY75 -> 0.9721290492 | BA77: =$AZ$40*(1-$AZ$42)*AZ75 -> 0.7971458204 | BB77: 0.6128058494 | BC77: 0.4187506638 | BD77: 0.2146097152
B78: AER return on debt calculation | D78: $ | E78: 143.7737976 | G78: =$G$41*$G$42*G53 -> 3.6 | H78: =$G$41*$G$42*G75 -> 3.6162 | I78: =$G$41*$G$42*H75 -> 3.63096 | J78: =$G$41*$G$42*I75 -> 3.644197875 | K78: =$G$41*$G$42*J75 -> 3.655828294 | L78: =$L$41*$L$42*K69 -> 3.66576261 | M78: =$L$41*$L$42*L75 -> 3.673908749 | N78: =$L$41*$L$42*M75 -> 3.680171093 | O78: =$L$41*$L$42*N75 -> 3.684450362 | P78: =$L$41*$L$42*O75 -> 3.686643487 | Q78: =$Q$41*$Q$42*P75 -> 3.686643487 | R78: =$Q$41*$Q$42*Q75 -> 3.684339335 | S78: 3.679615823 | T78: 3.672353423 | U78: 3.662428144 | V78: =$V$41*$V$42*U75 -> 3.64971138 | W78: =$V$41*$V$42*V75 -> 3.634069759 | X78: 3.615364989 | Y78: 3.593453686 | Z78: 3.568187214 | AA78: =$AA$41*$AA$42*Z75 -> 3.539411511 | AB78: =$AA$41*$AA$42*AA75 -> 3.506966906 | AC78: 3.470687938 | AD78: 3.430403167 | AE78: 3.385934978 | AF78: =$AF$41*$AF$42*AE75 -> 3.337099377 | AG78: =$AF$41*$AF$42*AF75 -> 3.283705787 | AH78: 3.22555683 | AI78: 3.16244811 | AJ78: 3.09416798 | AK78: =$AK$41*$AK$42*AJ75 -> 3.020497314 | AL78: =$AK$41*$AK$42*AK75 -> 2.941209259 | AM78: 2.856068991 | AN78: 2.764833454 | AO78: 2.667251097 | AP78: =$AP$41*$AP$42*AO75 -> 2.563061601 | AQ78: =$AP$41*$AP$42*AP75 -> 2.451995598 | AR78: 2.333774382 | AS78: 2.208109607 | AT78: 2.074702985 | AU78: =$AU$41*$AU$42*AT75 -> 1.933245964 | AV78: =$AU$41*$AU$42*AU75 -> 1.783419401 | AW78: 1.624893232 | AX78: 1.457326118 | AY78: 1.280365089 | AZ78: =$AZ$41*$AZ$42*AY75 -> 1.09364518 | BA78: =$AZ$41*$AZ$42*AZ75 -> 0.8967890479 | BB78: 0.6894065806 | BC78: 0.4710944967 | BD78: 0.2414359296
B81: Total revenue
B83: Return on equity | D83: $ | E83: =SUM(G83:BD83) -> 127.7989312 | G83: =$G$40*(1-$G$42)*G58 -> 3.2 | H83: =$G$40*(1-$G$42)*H58 -> 3.2144 | I83: =$G$40*(1-$G$42)*I58 -> 3.22752 | J83: =$G$40*(1-$G$42)*J58 -> 3.239287 | K83: =$G$40*(1-$G$42)*K58 -> 3.24962515 | L83: =$L$40*(1-$L$42)*L58 -> 3.258455653 | M83: =$L$40*(1-$L$42)*M58 -> 3.265696666 | N83: =$L$40*(1-$L$42)*N58 -> 3.271263194 | O83: =$L$40*(1-$L$42)*O58 -> 3.275066989 | P83: =$L$40*(1-$L$42)*P58 -> 3.277016433 | Q83: =$Q$40*(1-$Q$42)*Q58 -> 3.277016433 | R83: =$Q$40*(1-$Q$42)*R58 -> 3.274968298 | S83: 3.270769621 | T83: 3.264314154 | U83: 3.255491684 | V83: =$V$40*(1-$V$42)*V58 -> 3.244187893 | W83: =$V$40*(1-$V$42)*W58 -> 3.230284231 | X83: 3.213657768 | Y83: 3.194181054 | Z83: 3.171721968 | AA83: =$AA$40*(1-$AA$42)*AA58 -> 3.146143565 | AB83: =$AA$40*(1-$AA$42)*AB58 -> 3.117303916 | AC83: 3.085055944 | AD83: 3.049247259 | AE83: 3.00971998 | AF83: =$AF$40*(1-$AF$42)*AF58 -> 2.966310557 | AG83: =$AF$40*(1-$AF$42)*AG58 -> 2.918849588 | AH83: 2.867161627 | AI83: 2.811064986 | AJ83: 2.750371538 | AK83: =$AK$40*(1-$AK$42)*AK58 -> 2.684886501 | AL83: =$AK$40*(1-$AK$42)*AL58 -> 2.614408231 | AM83: 2.538727992 | AN83: 2.457629737 | AO83: 2.370889864 | AP83: =$AP$40*(1-$AP$42)*AP58 -> 2.278276979 | AQ83: =$AP$40*(1-$AP$42)*AQ58 -> 2.179551643 | AR83: 2.074466117 | AS83: 1.962764096 | AT83: 1.844180431 | AU83: =$AU$40*(1-$AU$42)*AU58 -> 1.718440857 | AV83: =$AU$40*(1-$AU$42)*AV58 -> 1.58526169 | AW83: 1.44434954 | AX83: 1.295400994 | AY83: 1.138102302 | AZ83: =$AZ$40*(1-$AZ$42)*AZ58 -> 0.9721290492 | BA83: =$AZ$40*(1-$AZ$42)*BA58 -> 0.7971458204 | BB83: =$AZ$40*(1-$AZ$42)*BB58 -> 0.6128058494 | BC83: =$AZ$40*(1-$AZ$42)*BC58 -> 0.4187506638 | BD83: =$AZ$40*(1-$AZ$42)*BD58 -> 0.2146097152
B84: Return on debt | D84: $ | E84: 143.7737976 | G84: =$G$41*$G$42*G58 -> 3.6 | H84: =$G$41*$G$42*H58 -> 3.6162 | I84: =$G$41*$G$42*I58 -> 3.63096 | J84: =$G$41*$G$42*J58 -> 3.644197875 | K84: =$G$41*$G$42*K58 -> 3.655828294 | L84: =$L$41*$L$42*L58 -> 3.66576261 | M84: =$L$41*$L$42*M58 -> 3.673908749 | N84: =$L$41*$L$42*N58 -> 3.680171093 | O84: =$L$41*$L$42*O58 -> 3.684450362 | P84: =$L$41*$L$42*P58 -> 3.686643487 | Q84: =$Q$41*$Q$42*Q58 -> 3.686643487 | R84: =$Q$41*$Q$42*R58 -> 3.684339335 | S84: 3.679615823 | T84: 3.672353423 | U84: 3.662428144 | V84: =$V$41*$V$42*V58 -> 3.64971138 | W84: =$V$41*$V$42*W58 -> 3.634069759 | X84: 3.615364989 | Y84: 3.593453686 | Z84: 3.568187214 | AA84: =$AA$41*$AA$42*AA58 -> 3.539411511 | AB84: =$AA$41*$AA$42*AB58 -> 3.506966906 | AC84: 3.470687938 | AD84: 3.430403167 | AE84: 3.385934978 | AF84: =$AF$41*$AF$42*AF58 -> 3.337099377 | AG84: =$AF$41*$AF$42*AG58 -> 3.283705787 | AH84: 3.22555683 | AI84: 3.16244811 | AJ84: 3.09416798 | AK84: =$AK$41*$AK$42*AK58 -> 3.020497314 | AL84: =$AK$41*$AK$42*AL58 -> 2.941209259 | AM84: 2.856068991 | AN84: 2.764833454 | AO84: 2.667251097 | AP84: =$AP$41*$AP$42*AP58 -> 2.563061601 | AQ84: =$AP$41*$AP$42*AQ58 -> 2.451995598 | AR84: 2.333774382 | AS84: 2.208109607 | AT84: 2.074702985 | AU84: =$AU$41*$AU$42*AU58 -> 1.933245964 | AV84: =$AU$41*$AU$42*AV58 -> 1.783419401 | AW84: 1.624893232 | AX84: 1.457326118 | AY84: 1.280365089 | AZ84: =$AZ$41*$AZ$42*AZ58 -> 1.09364518 | BA84: =$AZ$41*$AZ$42*BA58 -> 0.8967890479 | BB84: =$AZ$41*$AZ$42*BB58 -> 0.6894065806 | BC84: =$AZ$41*$AZ$42*BC58 -> 0.4710944967 | BD84: =$AZ$41*$AZ$42*BD58 -> 0.2414359296
B85: Regulatory depreciation | D85: $ | G85: =G61 -> -0.45 | H85: -0.41 | I85: -0.36771875 | J85: -0.3230671875 | K85: -0.2759532227 | L85: -0.2262816426 | M85: -0.1739540127 | N85: -0.1188685754 | O85: -0.06092014488 | P85: 0 | Q85: 0.06400422721 | R85: 0.1312086658 | S85: 0.2017333236 | T85: 0.275702209 | U85: 0.3532434552 | V85: 0.4344894499 | W85: 0.5195769672 | X85: 0.6086473045 | Y85: 0.701846423 | Z85: 0.7993250928 | AA85: 0.9012390422 | AB85: 1.007749111 | AC85: 1.119021408 | AD85: 1.235227478 | AE85: 1.356544462 | AF85: 1.483155279 | AG85: 1.615248796 | AH85: 1.753020016 | AI85: 1.896670268 | AJ85: 2.046407394 | AK85: 2.202445958 | AL85: 2.365007445 | AM85: 2.534320478 | AN85: 2.710621033 | AO85: 2.894152666 | AP85: 3.085166742 | AQ85: 3.283922676 | AR85: 3.490688178 | AS85: 3.705739503 | AT85: 3.929361715 | AU85: 4.16184895 | AV85: 4.403504695 | AW85: 4.654642072 | AX85: 4.915584128 | AY85: 5.186664135 | AZ85: 5.468225902 | BA85: 5.760624093 | BB85: 6.064224552 | BC85: 6.379404643 | BD85: 6.706553599
B86: Cost of tax | D86: $ | G86: =$G$46*(G83+G85-G54)/(1-$G$46*(1-$G$47)) -> 0.2743902439 | H86: =$G$46*(H83+H85-H54)/(1-$G$46*(1-$G$47)) -> 0.2942926829 | I86: =$G$46*(I83+I85-I54)/(1-$G$46*(1-$G$47)) -> 0.3145614329 | J86: =$G$46*(J83+J85-J54)/(1-$G$46*(1-$G$47)) -> 0.3352023704 | K86: =$G$46*(K83+K85-K54)/(1-$G$46*(1-$G$47)) -> 0.3562214368 | L86: =$L$46*(L83+L85-L54)/(1-$L$46*(1-$L$47)) -> 0.377624638 | M86: =$L$46*(M83+M85-M54)/(1-$L$46*(1-$L$47)) -> 0.3994180438 | N86: =$L$46*(N83+N85-N54)/(1-$L$46*(1-$L$47)) -> 0.4216077873 | O86: =$L$46*(O83+O85-O54)/(1-$L$46*(1-$L$47)) -> 0.4442000647 | P86: =$L$46*(P83+P85-P54)/(1-$L$46*(1-$L$47)) -> 0.4672011341 | Q86: =$Q$46*(Q83+Q85-Q54)/(1-$Q$46*(1-$Q$47)) -> 0.4906173148 | R86: =$Q$46*(R83+R85-R54)/(1-$Q$46*(1-$Q$47)) -> 0.5144549867 | S86: 0.5387205893 | T86: 0.5634206207 | U86: 0.5885616361 | V86: =$V$46*(V83+V85-V54)/(1-$V$46*(1-$V$47)) -> 0.6141502474 | W86: =$V$46*(W83+W85-W54)/(1-$V$46*(1-$V$47)) -> 0.6401931211 | X86: 0.6666969776 | Y86: 0.6936685891 | Z86: 0.7211147785 | AA86: =$AA$46*(AA83+AA85-AA54)/(1-$AA$46*(1-$AA$47)) -> 0.7490424174 | AB86: =$AA$46*(AB83+AB85-AB54)/(1-$AA$46*(1-$AA$47)) -> 0.7774584244 | AC86: 0.8063697633 | AD86: 0.8357834404 | AE86: 0.8657065033 | AF86: =$AF$46*(AF83+AF85-AF54)/(1-$AF$46*(1-$AF$47)) -> 0.8961460376 | AG86: =$AF$46*(AG83+AG85-AG54)/(1-$AF$46*(1-$AF$47)) -> 0.9271091649 | AH86: 0.9586030403 | AI86: 0.9906348491 | AJ86: 1.023211804 | AK86: =$AK$46*(AK83+AK85-AK54)/(1-$AK$46*(1-$AK$47)) -> 1.056341144 | AL86: =$AK$46*(AL83+AL85-AL54)/(1-$AK$46*(1-$AK$47)) -> 1.090030125 | AM86: 1.124286026 | AN86: 1.159116136 | AO86: 1.194527755 | AP86: =$AP$46*(AP83+AP85-AP54)/(1-$AP$46*(1-$AP$47)) -> 1.23052819 | AQ86: =$AP$46*(AQ83+AQ85-AQ54)/(1-$AP$46*(1-$AP$47)) -> 1.267124751 | AR86: 1.304324742 | AS86: 1.342135463 | AT86: 1.3805642 | AU86: =$AU$46*(AU83+AU85-AU54)/(1-$AU$46*(1-$AU$47)) -> 1.419618222 | AV86: =$AU$46*(AV83+AV85-AV54)/(1-$AU$46*(1-$AU$47)) -> 1.459304775 | AW86: 1.499631078 | AX86: 1.540604313 | AY86: 1.582231623 | AZ86: =$AZ$46*(AZ83+AZ85-AZ54)/(1-$AZ$46*(1-$AZ$47)) -> 1.624520104 | BA86: =$AZ$46*(BA83+BA85-BA54)/(1-$AZ$46*(1-$AZ$47)) -> 1.667476797 | BB86: 1.711108683 | BC86: 1.755422673 | BD86: 1.800425603
B87: Value of imputation credits | D87: $ | G87: =-$G$47*G86 -> -0.1097560976 | H87: =-$G$47*H86 -> -0.1177170732 | I87: -0.1258245732 | J87: -0.1340809482 | K87: -0.1424885747 | L87: =-$L$47*L86 -> -0.1510498552 | M87: =-$L$47*M86 -> -0.1597672175 | N87: -0.1686431149 | O87: -0.1776800259 | P87: -0.1868804536 | Q87: =-$Q$47*Q86 -> -0.1962469259 | R87: =-$Q$47*R86 -> -0.2057819947 | S87: -0.2154882357 | T87: -0.2253682483 | U87: -0.2354246545 | V87: =-$V$47*V86 -> -0.245660099 | W87: =-$V$47*W86 -> -0.2560772485 | X87: -0.266678791 | Y87: -0.2774674356 | Z87: -0.2884459114 | AA87: =-$AA$47*AA86 -> -0.299616967 | AB87: =-$AA$47*AB86 -> -0.3109833698 | AC87: -0.3225479053 | AD87: -0.3343133762 | AE87: -0.3462826013 | AF87: =-$AF$47*AF86 -> -0.358458415 | AG87: =-$AF$47*AG86 -> -0.370843666 | AH87: -0.3834412161 | AI87: -0.3962539396 | AJ87: -0.4092847218 | AK87: =-$AK$47*AK86 -> -0.4225364575 | AL87: =-$AK$47*AL86 -> -0.4360120501 | AM87: -0.4497144104 | AN87: -0.4636464542 | AO87: -0.4778111019 | AP87: =-$AP$47*AP86 -> -0.4922112762 | AQ87: =-$AP$47*AQ86 -> -0.5068499004 | AR87: -0.5217298969 | AS87: -0.5368541852 | AT87: -0.5522256799 | AU87: =-$AU$47*AU86 -> -0.5678472887 | AV87: =-$AU$47*AV86 -> -0.58372191 | AW87: -0.599852431 | AX87: -0.6162417251 | AY87: -0.6328926492 | AZ87: =-$AZ$47*AZ86 -> -0.6498080416 | BA87: =-$AZ$47*BA86 -> -0.666990719 | BB87: -0.6844434733 | BC87: -0.7021690693 | BD87: -0.7201702412
D88: $ | G88: =SUM(G83:G87) -> 6.514634146 | H88: =SUM(H83:H87) -> 6.59717561 | I88: 6.67949811 | J88: 6.76153911 | K88: 6.843233083 | L88: =SUM(L83:L87) -> 6.924511403 | M88: =SUM(M83:M87) -> 7.005302228 | N88: =SUM(N83:N87) -> 7.085530384 | O88: =SUM(O83:O87) -> 7.165117245 | P88: =SUM(P83:P87) -> 7.243980601 | Q88: 7.322034536 | R88: 7.399189291 | S88: 7.475351121 | T88: 7.550422159 | U88: 7.624300264 | V88: 7.696878871 | W88: 7.76804683 | X88: 7.837688247 | Y88: 7.905682316 | Z88: 7.971903143 | AA88: 8.036219569 | AB88: 8.098494987 | AC88: 8.158587148 | AD88: 8.216347968 | AE88: 8.271623322 | AF88: 8.324252835 | AG88: 8.37406967 | AH88: 8.420900298 | AI88: 8.464564273 | AJ88: 8.504873995 | AK88: 8.541634459 | AL88: 8.574643011 | AM88: 8.603689078 | AN88: 8.628553906 | AO88: 8.64901028 | AP88: 8.664822236 | AQ88: 8.675744768 | AR88: 8.681523523 | AS88: 8.681894484 | AT88: 8.676583651 | AU88: 8.665306703 | AV88: 8.647768652 | AW88: 8.623663491 | AX88: 8.592673827 | AY88: 8.554470499 | AZ88: 8.508712194 | BA88: 8.455045039 | BB88: 8.393102192 | BC88: 8.322503408 | BD88: 8.242854606
B91: Smoothing
B93: X | L93: 0.02198239547 | Q93: 0.007885007939 | V93: 0.02031737038 | AA93: 0.01369534838 | AF93: 0.02143702245 | AK93: 0.01920785512 | AP93: 0.0250804372 | AU93: 0.02605206318 | AZ93: 0.03222959969
B94: Forecast revenue | D94: $/unit | F94: =SUM(G94:BD94) -> 399.6688859 | G94: 6.363855188 | H94: =G94*(1+$G$28) -> 6.522951568 | I94: =H94*(1+$G$28) -> 6.686025357 | J94: =I94*(1+$G$28) -> 6.853175991 | K94: =J94*(1+$G$28) -> 7.02450539 | L94: =K160*(1+$L$28)*(1-$L$93) -> 7.041842183 | M94: =L94*(1+$L$28)*(1-$L$93) -> 7.059221764 | N94: =M94*(1+$L$28)*(1-$L$93) -> 7.076644239 | O94: =N94*(1+$L$28)*(1-$L$93) -> 7.094109713 | P94: =O94*(1+$L$28)*(1-$L$93) -> 7.111618292 | Q94: =P160*(1+$Q$28)*(1-$Q$93) -> 7.231931704 | R94: =Q94*(1+$Q$28)*(1-$Q$93) -> 7.354280561 | S94: =R94*(1+$Q$28)*(1-$Q$93) -> 7.478699301 | T94: 7.60522294 | U94: 7.733887089 | V94: =U160*(1+$V$28)*(1-$V$93) -> 7.766173712 | W94: =V94*(1+$V$28)*(1-$V$93) -> 7.798595121 | X94: =W94*(1+$V$28)*(1-$V$93) -> 7.83115188 | Y94: 7.863844553 | Z94: 7.896673708 | AA94: =Z160*(1+$AA$28)*(1-$AA$93) -> 7.983239161 | AB94: =AA94*(1+$AA$28)*(1-$AA$93) -> 8.070753568 | AC94: =AB94*(1+$AA$28)*(1-$AA$93) -> 8.159227331 | AD94: 8.248670967 | AE94: 8.339095108 | AF94: =AE160*(1+$AF$28)*(1-$AF$93) -> 8.364337982 | AG94: =AF94*(1+$AF$28)*(1-$AF$93) -> 8.389657268 | AH94: =AG94*(1+$AF$28)*(1-$AF$93) -> 8.415053197 | AI94: 8.440526 | AJ94: 8.466075911 | AK94: =AJ160*(1+$AK$28)*(1-$AK$93) -> 8.511047271 | AL94: =AK94*(1+$AK$28)*(1-$AK$93) -> 8.556257515 | AM94: =AL94*(1+$AK$28)*(1-$AK$93) -> 8.601707915 | AN94: 8.647399744 | AO94: 8.693334286 | AP94: =AO160*(1+$AP$28)*(1-$AP$93) -> 8.687184203 | AQ94: =AP94*(1+$AP$28)*(1-$AP$93) -> 8.681038471 | AR94: =AQ94*(1+$AP$28)*(1-$AP$93) -> 8.674897087 | AS94: 8.668760047 | AT94: 8.662627349 | AU94: =AT160*(1+$AU$28)*(1-$AU$93) -> 8.647871735 | AV94: =AU94*(1+$AU$28)*(1-$AU$93) -> 8.633141255 | AW94: =AV94*(1+$AU$28)*(1-$AU$93) -> 8.618435866 | AX94: 8.603755526 | AY94: 8.589100192 | AZ94: =AY160*(1+$AZ$28)*(1-$AZ$93) -> 8.520083854 | BA94: =AZ94*(1+$AZ$28)*(1-$AZ$93) -> 8.451622087 | BB94: =BA94*(1+$AZ$28)*(1-$AZ$93) -> 8.383710432 | BC94: 8.316344471 | BD94: 8.249519818
B95: PV(forecast revenue) | D95: $ | G95: =NPV(G43,G94:K94) -> 27.48890485 | L95: =NPV(L43,L94:P94) -> 29.16241724 | Q95: =NPV(Q43,Q94:U94) -> 30.76982323 | V95: =NPV(V43,V94:Z94) -> 32.26485057 | AA95: =NPV(AA43,AA94:AE94) -> 33.59020741 | AF95: =NPV(AF43,AF94:AJ94) -> 34.67548527 | AK95: =NPV(AK43,AK94:AO94) -> 35.43470101 | AP95: =NPV(AP43,AP94:AT94) -> 35.76341946 | AU95: =NPV(AU43,AU94:AY94) -> 35.53538862 | AZ95: =NPV(AZ43,AZ94:BD94) -> 34.5986093
B96: PV(total revenue) | D96: $ | G96: =NPV(G43,G88:K88) -> 27.48890485 | L96: =NPV(L43,L88:P88) -> 29.16241724 | Q96: =NPV(Q43,Q88:U88) -> 30.76982323 | V96: =NPV(V43,V88:Z88) -> 32.26485057 | AA96: =NPV(AA43,AA88:AE88) -> 33.59020741 | AF96: =NPV(AF43,AF88:AJ88) -> 34.67548527 | AK96: =NPV(AK43,AK88:AO88) -> 35.43470101 | AP96: =NPV(AP43,AP88:AT88) -> 35.76341946 | AU96: =NPV(AU43,AU88:AY88) -> 35.53538862 | AZ96: =NPV(AZ43,AZ88:BD88) -> 34.5986093
B97: PV(difference) (set to zero with Ctrl+z) | D97: $ | E97: =SUM(G97:BD97) -> -2.714273251e-12 | G97: =G95-G96 -> 0 | L97: =L95-L96 -> 0 | Q97: =Q95-Q96 -> 0 | V97: =V95-V96 -> 0 | AA97: =AA95-AA96 -> 0 | AF97: =AF95-AF96 -> 0 | AK97: =AK95-AK96 -> -6.039613254e-13 | AP97: =AP95-AP96 -> 0 | AU97: =AU95-AU96 -> -2.50111043e-12 | AZ97: =AZ95-AZ96 -> 3.907985047e-13
B100: PTRM analysis
B102: Debt
B104: Repayment of debt | D104: $ | G104: =$G$42*(G58-G62) -> -0.27 | H104: =$G$42*(H58-H62) -> -0.246 | I104: -0.22063125 | J104: -0.1938403125 | K104: -0.1655719336 | L104: =$L$42*(L58-L62) -> -0.1357689855 | M104: =$L$42*(M58-M62) -> -0.1043724076 | N104: -0.07132114522 | O104: -0.03655208693 | P104: 0 | Q104: =$Q$42*(Q58-Q62) -> 0.03840253633 | R104: =$Q$42*(R58-R62) -> 0.07872519947 | S104: =$Q$42*(S58-S62) -> 0.1210399942 | T104: =$Q$42*(T58-T62) -> 0.1654213254 | U104: =$Q$42*(U58-U62) -> 0.2119460731 | V104: =$V$42*(V58-V62) -> 0.26069367 | W104: =$V$42*(W58-W62) -> 0.3117461803 | X104: =$V$42*(X58-X62) -> 0.3651883827 | Y104: =$V$42*(Y58-Y62) -> 0.4211078538 | Z104: =$V$42*(Z58-Z62) -> 0.4795950557 | AA104: =$AA$42*(AA58-AA62) -> 0.5407434253 | AB104: =$AA$42*(AB58-AB62) -> 0.6046494665 | AC104: =$AA$42*(AC58-AC62) -> 0.6714128451 | AD104: =$AA$42*(AD58-AD62) -> 0.7411364867 | AE104: =$AA$42*(AE58-AE62) -> 0.8139266773 | AF104: =$AF$42*(AF58-AF62) -> 0.8898931672 | AG104: =$AF$42*(AG58-AG62) -> 0.9691492774 | AH104: =$AF$42*(AH58-AH62) -> 1.05181201 | AI104: =$AF$42*(AI58-AI62) -> 1.138002161 | AJ104: =$AF$42*(AJ58-AJ62) -> 1.227844437 | AK104: =$AK$42*(AK58-AK62) -> 1.321467575 | AL104: =$AK$42*(AL58-AL62) -> 1.419004467 | AM104: =$AK$42*(AM58-AM62) -> 1.520592287 | AN104: =$AK$42*(AN58-AN62) -> 1.62637262 | AO104: =$AK$42*(AO58-AO62) -> 1.7364916 | AP104: =$AP$42*(AP58-AP62) -> 1.851100045 | AQ104: =$AP$42*(AQ58-AQ62) -> 1.970353606 | AR104: =$AP$42*(AR58-AR62) -> 2.094412907 | AS104: =$AP$42*(AS58-AS62) -> 2.223443702 | AT104: =$AP$42*(AT58-AT62) -> 2.357617029 | AU104: =$AU$42*(AU58-AU62) -> 2.49710937 | AV104: =$AU$42*(AV58-AV62) -> 2.642102817 | AW104: =$AU$42*(AW58-AW62) -> 2.792785243 | AX104: =$AU$42*(AX58-AX62) -> 2.949350477 | AY104: =$AU$42*(AY58-AY62) -> 3.111998481 | AZ104: =$AZ$42*(AZ58-AZ62) -> 3.280935541 | BA104: =$AZ$42*(BA58-BA62) -> 3.456374456 | BB104: 3.638534731 | BC104: 3.827642786 | BD104: 4.02393216
B105: Cash flow to debt (period 1) | D105: $ | F105: =-G42*G58 -> -60 | G105: =G$84+G$104 -> 3.33 | H105: =H$84+H$104 -> 3.3702 | I105: 3.41032875 | J105: 3.450357563 | K105: =K$84+K$104+G$42*K$62 -> 64.58629986
B106: Delivered return on debt (period 1) | E106: =IRR(F105:K105,0.1) -> 0.06
B107: Cash flow to debt (period 2) | D107: $ | K107: =-L$42*L$58 -> -61.0960435 | L107: =L$84+L$104 -> 3.529993624 | M107: =M$84+M$104 -> 3.569536341 | N107: 3.608849948 | O107: 3.647898275 | P107: =P$84+P$104+L$42*P$62 -> 65.13070161
B108: Delivered return on debt (period 2) | E108: =IRR(K107:P107,0.1) -> 0.06
B109: Cash flow to debt (period 3) | D109: $ | P109: =-Q$42*Q$58 -> -61.44405812 | Q109: =Q$84+Q$104 -> 3.725046024 | R109: =R$84+R$104 -> 3.763064535 | S109: 3.800655817 | T109: 3.837774749 | U109: =U$84+U$104+Q$42*U$62 -> 64.70289721 | AZ109: =AZ84+AZ104 -> 4.374580722 | BA109: =BA84+BA104 -> 4.353163503 | BB109: =BB84+BB104 -> 4.327941312 | BC109: =BC84+BC104 -> 4.298737283 | BD109: =BD84+BD104 -> 4.265368089
B110: Delivered return on debt (period 3) | E110: =IRR(P109:U109,0.1) -> 0.06
B111: Return on and of debt (period 4) | D111: $ | U111: =-V$42*V$58 -> -60.82852299 | V111: =V$84+V$104 -> 3.91040505 | W111: =W$84+W$104 -> 3.94581594 | X111: 3.980553371 | Y111: 4.014561539 | Z111: =Z$84+Z$104+V$42*Z$62 -> 63.03797412
B112: Delivered return on debt (period 4) | E112: =IRR(U111:Z111,0.1) -> 0.06
B113: Cash flow to debt (period 5) | D113: $ | Z113: =-AA$42*AA$58 -> -58.99019185 | AA113: =AA$84+AA$104 -> 4.080154936 | AB113: =AB$84+AB$104 -> 4.111616372 | AC113: 4.142100783 | AD113: 4.171539653 | AE113: =AE$84+AE$104+AA$42*AE$62 -> 59.8181846
B114: Delivered return on debt (period 5) | E114: =IRR(Z113:AE113,0.1) -> 0.06
B115: Cash flow to debt (period 6) | D115: $ | AE115: =-AF$42*AF$58 -> -55.61832295 | AF115: =AF$84+AF$104 -> 4.226992544 | AG115: =AG$84+AG$104 -> 4.252855064 | AH115: 4.27736884 | AI115: 4.30045027 | AJ115: =AJ$84+AJ$104+AF$42*AJ$62 -> 54.66363431
B116: Delivered return on debt (period 6) | E116: =IRR(AE115:AJ115,0.1) -> 0.06
B117: Return on and of debt (period 7) | D117: $ | AJ117: =-AK$42*AK$58 -> -50.3416219 | AK117: =AK$84+AK$104 -> 4.341964889 | AL117: =AL$84+AL$104 -> 4.360213727 | AM117: 4.376661278 | AN117: 4.391206074 | AO117: =AO$84+AO$104+AK$42*AO$62 -> 47.12143605
B118: Delivered return on debt (period 7) | E118: =IRR(AJ117:AO117,0.1) -> 0.06
B119: Cash flow to debt (period 8) | D119: $ | AO119: =-AP$42*AP$58 -> -42.71769335 | AP119: =AP$84+AP$104 -> 4.414161646 | AQ119: =AQ$84+AQ$104 -> 4.422349204 | AR119: 4.428187289 | AS119: 4.431553309 | AT119: =AT$84+AT$104+AP$42*AT$62 -> 36.65308607
B120: Delivered return on debt (period 8) | E120: =IRR(AO119:AT119,0.1) -> 0.06
B121: Cash flow to debt (period 9) | D121: $ | AT121: =-AU$42*AU$58 -> -32.22076606 | AU121: =AU$84+AU$104 -> 4.430355333 | AV121: =AV$84+AV$104 -> 4.425522218 | AW121: 4.417678476 | AX121: 4.406676594 | AY121: =AY$84+AY$104+AU$42*AY$62 -> 22.61978324
B122: Delivered return on debt (period 9) | E122: =IRR(AT121:AY121,0.1) -> 0.06
B123: Cash flow to debt (period 10) | D123: $ | AY123: =-AZ$42*AZ$58 -> -18.22741967 | AZ123: =AZ$84+AZ$104 -> 4.374580722 | BA123: =BA$84+BA$104 -> 4.353163503 | BB123: 4.327941312 | BC123: 4.298737283 | BD123: =BD$84+BD$104+AZ$42*BD$62 -> 4.265368089
B124: Delivered return on debt (period 10) | E124: =IRR(AY123:BD123,0.1) -> 0.06
B126: Cash flow to debt (life of asset) | D126: $ | F126: =-G42*G58 -> -60 | G126: =G84+G104 -> 3.33 | H126: 3.3702 | I126: 3.41032875 | J126: 3.450357563 | K126: 3.49025636 | L126: 3.529993624 | M126: 3.569536341 | N126: 3.608849948 | O126: 3.647898275 | P126: 3.686643487 | Q126: 3.725046024 | R126: 3.763064535 | S126: 3.800655817 | T126: 3.837774749 | U126: 3.874374217 | V126: 3.91040505 | W126: 3.94581594 | X126: 3.980553371 | Y126: 4.014561539 | Z126: 4.04778227 | AA126: 4.080154936 | AB126: 4.111616372 | AC126: 4.142100783 | AD126: 4.171539653 | AE126: 4.199861655 | AF126: 4.226992544 | AG126: 4.252855064 | AH126: 4.27736884 | AI126: 4.30045027 | AJ126: 4.322012417 | AK126: 4.341964889 | AL126: 4.360213727 | AM126: =AM84+AM104 -> 4.376661278 | AN126: 4.391206074 | AO126: 4.403742696 | AP126: 4.414161646 | AQ126: 4.422349204 | AR126: 4.428187289 | AS126: 4.431553309 | AT126: 4.432320014 | AU126: 4.430355333 | AV126: 4.425522218 | AW126: 4.417678476 | AX126: 4.406676594 | AY126: 4.39236357 | AZ126: 4.374580722 | BA126: 4.353163503 | BB126: 4.327941312 | BC126: 4.298737283 | BD126: =BD84+BD104+AZ42*BD62 -> 4.265368089
B127: Delivered return on debt (life of asset) | E127: =IRR(F126:BD126,0.1) -> 0.06
B129: Equity
B131: Cash flow to equity (period 1) | D131: $ | F131: =-(1-G$42)*G$58 -> -40 | G131: =G$88-G$84-G$104-(G$86+G$87) -> 3.02 | H131: =H$88-H$84-H$104-(H$86+H$87) -> 3.0504 | I131: 3.0804325 | J131: 3.110060125 | K131: =K$88-K$84-K$104-(K$86+K$87)+(1-G$42)*K$62 -> 43.86993953
B132: Delivered rate of return on equity (period 1) | E132: =IRR(F131:K131,0.1) -> 0.08
B133: Cash flow to equity (period 2) | D133: $ | K133: =-(1-L$42)*L$58 -> -40.73069566 | L133: =L$88-L$84-L$104-(L$86+L$87) -> 3.167942996 | M133: =M$88-M$84-M$104-(M$86+M$87) -> 3.196115061 | N133: 3.223715764 | O133: 3.250698931 | P133: =P$88-P$84-P$104-(P$86+P$87)+(1-L$42)*P$62 -> 44.23972185
B134: Delivered rate return on equity (period 2) | E134: =IRR(K133:P133,0.1) -> 0.08
B135: Cash flow to equity (period 3) | D135: $ | P135: =-(1-Q$42)*Q$58 -> -40.96270541 | Q135: =Q$88-Q$84-Q$104-(Q$86+Q$87) -> 3.302618124 | R135: =R$88-R$84-R$104-(R$86+R$87) -> 3.327451764 | S135: 3.35146295 | T135: 3.374595038 | U135: =U$88-U$84-U$104-(U$86+U$87)+(1-Q$42)*U$62 -> 43.94913773 | AZ135: =AZ88-AZ84-AZ104-(AZ86+AZ87) -> 3.15941941 | BA135: =BA88-BA84-BA104-(BA86+BA87) -> 3.101395457 | BB135: =BB88-BB84-BB104-(BB86+BB87) -> 3.03849567 | BC135: =BC88-BC84-BC104-(BC86+BC87) -> 2.970512521 | BD135: =BD88-BD84-BD104-(BD86+BD87) -> 2.897231155
B136: Delivered rate of return on equity (period 3) | E136: =IRR(P135:U135,0.1) -> 0.08
B137: Cash flow to equity (period 1) | D137: $ | U137: =-(1-V$42)*V$58 -> -40.55234866 | V137: =V$88-V$84-V$104-(V$86+V$87) -> 3.417983673 | W137: =W$88-W$84-W$104-(W$86+W$87) -> 3.438115017 | X137: 3.457116689 | Y137: 3.474919623 | Z137: =Z$88-Z$84-Z$104-(Z$86+Z$87)+(1-V$42)*Z$62 -> 42.81824657
B138: Delivered rate of return on equity (period 1) | E138: =IRR(U137:Z137,0.1) -> 0.08
B139: Cash flow to equity (period 2) | D139: $ | Z139: =-(1-AA$42)*AA$58 -> -39.32679457 | AA139: =AA$88-AA$84-AA$104-(AA$86+AA$87) -> 3.506639182 | AB139: =AB$88-AB$84-AB$104-(AB$86+AB$87) -> 3.52040356 | AC139: 3.532664508 | AD139: 3.54333825 | AE139: =AE$88-AE$84-AE$104-(AE$86+AE$87)+(1-AA$42)*AE$62 -> 40.63121973
B140: Delivered rate return on equity (period 2) | E140: =IRR(Z139:AE139,0.1) -> 0.08
B141: Cash flow to equity (period 3) | D141: $ | AE141: =-(1-AF$42)*AF$58 -> -37.07888197 | AF141: =AF$88-AF$84-AF$104-(AF$86+AF$87) -> 3.559572669 | AG141: =AG$88-AG$84-AG$104-(AG$86+AG$87) -> 3.564949107 | AH141: 3.568369634 | AI141: 3.569733094 | AJ141: =AJ$88-AJ$84-AJ$104-(AJ$86+AJ$87)+(1-AF$42)*AJ$62 -> 37.13001576
B142: Delivered rate of return on equity (period 3) | E142: =IRR(AE141:AJ141,0.1) -> 0.08
B143: Cash flow to equity (period 1) | D143: $ | AJ143: =-(1-AK$42)*AK$58 -> -33.56108127 | AK143: =AK$88-AK$84-AK$104-(AK$86+AK$87) -> 3.565864884 | AL143: =AL$88-AL$84-AL$104-(AL$86+AL$87) -> 3.560411209 | AM143: 3.552456184 | AN143: 3.54187815 | AO143: =AO$88-AO$84-AO$104-(AO$86+AO$87)+(1-AK$42)*AO$62 -> 32.00701316
B144: Delivered rate of return on equity (period 1) | E144: =IRR(AJ143:AO143,0.1) -> 0.08
B145: Cash flow to equity (period 2) | D145: $ | AO145: =-(1-AP$42)*AP$58 -> -28.47846223 | AP145: =AP$88-AP$84-AP$104-(AP$86+AP$87) -> 3.512343675 | AQ145: =AQ$88-AQ$84-AQ$104-(AQ$86+AQ$87) -> 3.493120713 | AR145: 3.470741388 | AS145: 3.445059897 | AT145: =AT$88-AT$84-AT$104-(AT$86+AT$87)+(1-AP$42)*AT$62 -> 24.89643582
B146: Delivered rate return on equity (period 2) | E146: =IRR(AO145:AT145,0.1) -> 0.08
B147: Cash flow to equity (period 3) | D147: $ | AT147: =-(1-AU$42)*AU$58 -> -21.48051071 | AU147: =AU$88-AU$84-AU$104-(AU$86+AU$87) -> 3.383180436 | AV147: =AV$88-AV$84-AV$104-(AV$86+AV$87) -> 3.346663568 | AW147: 3.306206369 | AX147: 3.261634645 | AY147: =AY$88-AY$84-AY$104-(AY$86+AY$87)+(1-AU$42)*AY$62 -> 15.36438107
B148: Delivered rate of return on equity (period 3) | E148: =IRR(AT147:AY147,0.1) -> 0.08
B149: Cash flow to equity (period 3) | D149: $ | AY149: =-(1-AZ$42)*AZ$58 -> -12.15161312 | AZ149: =AZ$88-AZ$84-AZ$104-(AZ$86+AZ$87) -> 3.15941941 | BA149: =BA$88-BA$84-BA$104-(BA$86+BA$87) -> 3.101395457 | BB149: 3.03849567 | BC149: 2.970512521 | BD149: =BD$88-BD$84-BD$104-(BD$86+BD$87)+(1-AZ$42)*BD$62 -> 2.897231155
B150: Delivered rate of return on equity (period 3) | E150: =IRR(AY149:BD149,0.1) -> 0.08
B152: Return on and of equity (life of asset) | D152: $ | F152: =-(1-G42)*G58 -> -40 | G152: =G88-G84-G104-(G86+G87) -> 3.02 | H152: 3.0504 | I152: 3.0804325 | J152: 3.110060125 | K152: 3.139243861 | L152: 3.167942996 | M152: 3.196115061 | N152: 3.223715764 | O152: 3.250698931 | P152: 3.277016433 | Q152: =Q88-Q84-Q104-(Q86+Q87) -> 3.302618124 | R152: 3.327451764 | S152: 3.35146295 | T152: 3.374595038 | U152: 3.396789066 | V152: 3.417983673 | W152: 3.438115017 | X152: 3.457116689 | Y152: 3.474919623 | Z152: 3.491452005 | AA152: 3.506639182 | AB152: 3.52040356 | AC152: 3.532664508 | AD152: 3.54333825 | AE152: 3.552337765 | AF152: 3.559572669 | AG152: 3.564949107 | AH152: 3.568369634 | AI152: 3.569733094 | AJ152: 3.568934496 | AK152: 3.565864884 | AL152: 3.560411209 | AM152: 3.552456184 | AN152: 3.54187815 | AO152: 3.52855093 | AP152: 3.512343675 | AQ152: 3.493120713 | AR152: 3.470741388 | AS152: 3.445059897 | AT152: 3.415925117 | AU152: 3.383180436 | AV152: 3.346663568 | AW152: 3.306206369 | AX152: 3.261634645 | AY152: 3.212767955 | AZ152: 3.15941941 | BA152: 3.101395457 | BB152: 3.03849567 | BC152: 2.970512521 | BD152: =BD88-BD84-BD104-(BD86+BD87)+(1-AZ42)*BD62 -> 2.897231155
B153: Delivered rate of return on equity (life of asset) | E153: =IRR(F152:BD152,0.1) -> 0.08
B157: Revenue and return outcome
B159: Application of tariff variation mechanism
B160: Revenue at varied tariff | D160: $ | F160: =SUM(G160:BD160) -> 399.6688859 | G160: =G94 -> 6.363855188 | H160: =G160*(1+H31) -> 6.522951568 | I160: =H160*(1+I31) -> 6.686025357 | J160: =I160*(1+J31) -> 6.853175991 | K160: =J160*(1+K31) -> 7.02450539 | L160: =L94 -> 7.041842183 | M160: =L160*(1+M31)*(1-$L$93) -> 7.059221764 | N160: =M160*(1+N31)*(1-$L$93) -> 7.076644239 | O160: =N160*(1+O31)*(1-$L$93) -> 7.094109713 | P160: =O160*(1+P31)*(1-$L$93) -> 7.111618292 | Q160: =Q94 -> 7.231931704 | R160: =Q160*(1+R31)*(1-$Q$93) -> 7.354280561 | S160: =R160*(1+S31)*(1-$Q$93) -> 7.478699301 | T160: =S160*(1+T31)*(1-$Q$93) -> 7.60522294 | U160: =T160*(1+U31)*(1-$Q$93) -> 7.733887089 | V160: =V94 -> 7.766173712 | W160: =V160*(1+W31)*(1-$V$93) -> 7.798595121 | X160: =W160*(1+X31)*(1-$V$93) -> 7.83115188 | Y160: =X160*(1+Y31)*(1-$V$93) -> 7.863844553 | Z160: =Y160*(1+Z31)*(1-$V$93) -> 7.896673708 | AA160: =AA94 -> 7.983239161 | AB160: =AA160*(1+AB31)*(1-$AA$93) -> 8.070753568 | AC160: =AB160*(1+AC31)*(1-$AA$93) -> 8.159227331 | AD160: =AC160*(1+AD31)*(1-$AA$93) -> 8.248670967 | AE160: =AD160*(1+AE31)*(1-$AA$93) -> 8.339095108 | AF160: =AF94 -> 8.364337982 | AG160: =AF160*(1+AG31)*(1-$AF$93) -> 8.389657268 | AH160: =AG160*(1+AH31)*(1-$AF$93) -> 8.415053197 | AI160: =AH160*(1+AI31)*(1-$AF$93) -> 8.440526 | AJ160: =AI160*(1+AJ31)*(1-$AF$93) -> 8.466075911 | AK160: =AK94 -> 8.511047271 | AL160: =AK160*(1+AL31)*(1-$AK$93) -> 8.556257515 | AM160: =AL160*(1+AM31)*(1-$AK$93) -> 8.601707915 | AN160: =AM160*(1+AN31)*(1-$AK$93) -> 8.647399744 | AO160: =AN160*(1+AO31)*(1-$AK$93) -> 8.693334286 | AP160: =AP94 -> 8.687184203 | AQ160: =AP160*(1+AQ31)*(1-$AP$93) -> 8.681038471 | AR160: =AQ160*(1+AR31)*(1-$AP$93) -> 8.674897087 | AS160: =AR160*(1+AS31)*(1-$AP$93) -> 8.668760047 | AT160: =AS160*(1+AT31)*(1-$AP$93) -> 8.662627349 | AU160: =AU94 -> 8.647871735 | AV160: =AU160*(1+AV31)*(1-$AU$93) -> 8.633141255 | AW160: =AV160*(1+AW31)*(1-$AU$93) -> 8.618435866 | AX160: =AW160*(1+AX31)*(1-$AU$93) -> 8.603755526 | AY160: =AX160*(1+AY31)*(1-$AU$93) -> 8.589100192 | AZ160: =AZ94 -> 8.520083854 | BA160: =AZ160*(1+BA31)*(1-$AZ$93) -> 8.451622087 | BB160: =BA160*(1+BB31)*(1-$AZ$93) -> 8.383710432 | BC160: =BB160*(1+BC31)*(1-$AZ$93) -> 8.316344471 | BD160: =BC160*(1+BD31)*(1-$AZ$93) -> 8.249519818
B162: Debt
B163: Debt (start of year) | D163: $ | G163: =G42*G58 -> 60 | H163: =G165 -> 60.27 | I163: =H165 -> 60.516 | J163: 60.73663125 | K163: 60.93047156 | L163: 61.0960435 | M163: 61.23181248 | N163: 61.33618489 | O163: 61.40750603 | P163: 61.44405812 | Q163: =P165 -> 61.44405812 | R163: =Q165 -> 61.40565559 | S163: =R165 -> 61.32693039 | T163: =S165 -> 61.20589039 | U163: =T165 -> 61.04046907 | V163: =U165 -> 60.82852299 | W163: =V165 -> 60.56782932 | X163: =W165 -> 60.25608314 | Y163: =X165 -> 59.89089476 | Z163: =Y165 -> 59.46978691 | AA163: =Z165 -> 58.99019185 | AB163: =AA165 -> 58.44944843 | AC163: =AB165 -> 57.84479896 | AD163: =AC165 -> 57.17338611 | AE163: =AD165 -> 56.43224963 | AF163: =AE165 -> 55.61832295 | AG163: =AF165 -> 54.72842978 | AH163: =AG165 -> 53.75928051 | AI163: =AH165 -> 52.7074685 | AJ163: =AI165 -> 51.56946633 | AK163: =AJ165 -> 50.3416219 | AL163: =AK165 -> 49.02015432 | AM163: =AL165 -> 47.60114986 | AN163: =AM165 -> 46.08055757 | AO163: =AN165 -> 44.45418495 | AP163: =AO165 -> 42.71769335 | AQ163: =AP165 -> 40.8665933 | AR163: =AQ165 -> 38.8962397 | AS163: =AR165 -> 36.80182679 | AT163: =AS165 -> 34.57838309 | AU163: =AT165 -> 32.22076606 | AV163: =AU165 -> 29.72365669 | AW163: =AV165 -> 27.08155387 | AX163: =AW165 -> 24.28876863 | AY163: =AX165 -> 21.33941815 | AZ163: =AY165 -> 18.22741967 | BA163: =AZ165 -> 14.94648413 | BB163: =BA165 -> 11.49010968 | BC163: =BB165 -> 7.851574946 | BD163: =BC165 -> 4.02393216
B164: Repayment of debt | D164: $ | F164: =SUM(G164:BD164) -> 60 | G164: =$G$42*(G65-G69) -> -0.27 | H164: =$G$42*(H65-H69) -> -0.246 | I164: =$G$42*(I65-I69) -> -0.22063125 | J164: =$G$42*(J65-J69) -> -0.1938403125 | K164: =$G$42*(K65-K69) -> -0.1655719336 | L164: =$L$42*(L65-L69) -> -0.1357689855 | M164: =$L$42*(M65-M69) -> -0.1043724076 | N164: =$L$42*(N65-N69) -> -0.07132114522 | O164: =$L$42*(O65-O69) -> -0.03655208693 | P164: =$L$42*(P65-P69) -> 0 | Q164: =$Q$42*(Q65-Q69) -> 0.03840253633 | R164: =$Q$42*(R65-R69) -> 0.07872519947 | S164: 0.1210399942 | T164: 0.1654213254 | U164: 0.2119460731 | V164: =$V$42*(V65-V69) -> 0.26069367 | W164: =$V$42*(W65-W69) -> 0.3117461803 | X164: 0.3651883827 | Y164: 0.4211078538 | Z164: 0.4795950557 | AA164: =$AA$42*(AA65-AA69) -> 0.5407434253 | AB164: =$AA$42*(AB65-AB69) -> 0.6046494665 | AC164: 0.6714128451 | AD164: 0.7411364867 | AE164: 0.8139266773 | AF164: =$AF$42*(AF65-AF69) -> 0.8898931672 | AG164: =$AF$42*(AG65-AG69) -> 0.9691492774 | AH164: 1.05181201 | AI164: 1.138002161 | AJ164: 1.227844437 | AK164: =$AK$42*(AK65-AK69) -> 1.321467575 | AL164: =$AK$42*(AL65-AL69) -> 1.419004467 | AM164: 1.520592287 | AN164: 1.62637262 | AO164: 1.7364916 | AP164: =$AP$42*(AP65-AP69) -> 1.851100045 | AQ164: =$AP$42*(AQ65-AQ69) -> 1.970353606 | AR164: 2.094412907 | AS164: 2.223443702 | AT164: 2.357617029 | AU164: =$AU$42*(AU65-AU69) -> 2.49710937 | AV164: =$AU$42*(AV65-AV69) -> 2.642102817 | AW164: 2.792785243 | AX164: 2.949350477 | AY164: 3.111998481 | AZ164: =$AZ$42*(AZ65-AZ69) -> 3.280935541 | BA164: =$AZ$42*(BA65-BA69) -> 3.456374456 | BB164: 3.638534731 | BC164: 3.827642786 | BD164: 4.02393216
B165: Debt (end of year) | D165: $ | G165: =G163-G164 -> 60.27 | H165: =H163-H164 -> 60.516 | I165: 60.73663125 | J165: 60.93047156 | K165: 61.0960435 | L165: 61.23181248 | M165: 61.33618489 | N165: 61.40750603 | O165: 61.44405812 | P165: 61.44405812 | Q165: 61.40565559 | R165: 61.32693039 | S165: 61.20589039 | T165: 61.04046907 | U165: 60.82852299 | V165: 60.56782932 | W165: 60.25608314 | X165: 59.89089476 | Y165: 59.46978691 | Z165: 58.99019185 | AA165: 58.44944843 | AB165: 57.84479896 | AC165: 57.17338611 | AD165: 56.43224963 | AE165: 55.61832295 | AF165: 54.72842978 | AG165: 53.75928051 | AH165: 52.7074685 | AI165: 51.56946633 | AJ165: 50.3416219 | AK165: 49.02015432 | AL165: 47.60114986 | AM165: 46.08055757 | AN165: 44.45418495 | AO165: 42.71769335 | AP165: 40.8665933 | AQ165: 38.8962397 | AR165: 36.80182679 | AS165: 34.57838309 | AT165: 32.22076606 | AU165: 29.72365669 | AV165: 27.08155387 | AW165: 24.28876863 | AX165: 21.33941815 | AY165: 18.22741967 | AZ165: 14.94648413 | BA165: 11.49010968 | BB165: 7.851574946 | BC165: 4.02393216 | BD165: 4.058975378e-13
B166: Return on debt | D166: $ | G166: =$G$41*G163 -> 3.6 | H166: =$G$41*H163 -> 3.6162 | I166: 3.63096 | J166: 3.644197875 | K166: 3.655828294 | L166: =$L$41*L163 -> 3.66576261 | M166: =$L$41*M163 -> 3.673908749 | N166: 3.680171093 | O166: 3.684450362 | P166: 3.686643487 | Q166: =$Q$41*Q163 -> 3.686643487 | R166: =$Q$41*R163 -> 3.684339335 | S166: 3.679615823 | T166: 3.672353423 | U166: 3.662428144 | V166: =$V$41*V163 -> 3.64971138 | W166: =$V$41*W163 -> 3.634069759 | X166: 3.615364989 | Y166: 3.593453686 | Z166: 3.568187214 | AA166: =$AA$41*AA163 -> 3.539411511 | AB166: =$AA$41*AB163 -> 3.506966906 | AC166: 3.470687938 | AD166: 3.430403167 | AE166: 3.385934978 | AF166: =$AF$41*AF163 -> 3.337099377 | AG166: =$AF$41*AG163 -> 3.283705787 | AH166: 3.22555683 | AI166: 3.16244811 | AJ166: 3.09416798 | AK166: =$AK$41*AK163 -> 3.020497314 | AL166: =$AK$41*AL163 -> 2.941209259 | AM166: 2.856068991 | AN166: 2.764833454 | AO166: 2.667251097 | AP166: =$AP$41*AP163 -> 2.563061601 | AQ166: =$AP$41*AQ163 -> 2.451995598 | AR166: 2.333774382 | AS166: 2.208109607 | AT166: 2.074702985 | AU166: =$AU$41*AU163 -> 1.933245964 | AV166: =$AU$41*AV163 -> 1.783419401 | AW166: 1.624893232 | AX166: 1.457326118 | AY166: 1.280365089 | AZ166: =$AZ$41*AZ163 -> 1.09364518 | BA166: =$AZ$41*BA163 -> 0.8967890479 | BB166: 0.6894065806 | BC166: 0.4710944967 | BD166: 0.2414359296
B167: Cash flow to debt | D167: $ | E167: =IRR(F167:BD167,0.1) -> 0.06 | F167: =-F164 -> -60 | G167: =G164+G166 -> 3.33 | H167: =H164+H166 -> 3.3702 | I167: 3.41032875 | J167: 3.450357563 | K167: 3.49025636 | L167: 3.529993624 | M167: 3.569536341 | N167: 3.608849948 | O167: 3.647898275 | P167: 3.686643487 | Q167: 3.725046024 | R167: 3.763064535 | S167: 3.800655817 | T167: 3.837774749 | U167: 3.874374217 | V167: 3.91040505 | W167: 3.94581594 | X167: 3.980553371 | Y167: 4.014561539 | Z167: 4.04778227 | AA167: 4.080154936 | AB167: 4.111616372 | AC167: 4.142100783 | AD167: 4.171539653 | AE167: 4.199861655 | AF167: 4.226992544 | AG167: 4.252855064 | AH167: 4.27736884 | AI167: 4.30045027 | AJ167: 4.322012417 | AK167: 4.341964889 | AL167: 4.360213727 | AM167: 4.376661278 | AN167: 4.391206074 | AO167: 4.403742696 | AP167: 4.414161646 | AQ167: 4.422349204 | AR167: 4.428187289 | AS167: 4.431553309 | AT167: 4.432320014 | AU167: 4.430355333 | AV167: 4.425522218 | AW167: 4.417678476 | AX167: 4.406676594 | AY167: 4.39236357 | AZ167: 4.374580722 | BA167: 4.353163503 | BB167: 4.327941312 | BC167: 4.298737283 | BD167: 4.265368089
B169: Equity return
B170: Cost of tax | D170: $ | G170: =$G$46*(G160-G166-G54) -> 0.2291565564 | H170: =$G$46*(H160-H166-H54) -> 0.2720254703 | I170: 0.316519607 | J170: 0.3626934347 | K170: 0.410603129 | L170: =$L$46*(L160-L166-L54) -> 0.4128238721 | M170: =$L$46*(M160-M166-M54) -> 0.4155939046 | N170: 0.4189419436 | O170: 0.4228978052 | P170: 0.4274924415 | Q170: =$Q$46*(Q160-Q166-Q54) -> 0.4635864649 | R170: =$Q$46*(R160-R166-R54) -> 0.5009823679 | S170: 0.5397250433 | T170: 0.5798608549 | U170: 0.6214376835 | V170: =$V$46*(V160-V166-V54) -> 0.6349386996 | W170: =$V$46*(W160-W166-W54) -> 0.6493576084 | X170: 0.6647360673 | Y170: 0.6811172602 | Z170: 0.6985459482 | AA170: =$AA$46*(AA160-AA166-AA54) -> 0.7331482951 | AB170: =$AA$46*(AB160-AB166-AB54) -> 0.7691359987 | AC170: 0.8065618179 | AD170: 0.8454803399 | AE170: 0.885948039 | AF170: =$AF$46*(AF160-AF166-AF54) -> 0.9081715815 | AG170: =$AF$46*(AG160-AG166-AG54) -> 0.9317854443 | AH170: 0.95684891 | AI170: 0.9834233672 | AJ170: 1.011572379 | AK170: =$AK$46*(AK160-AK166-AK54) -> 1.047164987 | AL170: =$AK$46*(AL160-AL166-AL54) -> 1.084514477 | AM170: 1.123691677 | AN170: 1.164769887 | AO170: 1.207824957 | AP170: =$AP$46*(AP160-AP166-AP54) -> 1.237236781 | AQ170: =$AP$46*(AQ160-AQ166-AQ54) -> 1.268712862 | AR170: 1.302336811 | AS170: 1.338195132 | AT170: 1.376377309 | AU170: =$AU$46*(AU160-AU166-AU54) -> 1.414387731 | AV170: =$AU$46*(AV160-AV166-AV54) -> 1.454916556 | AW170: 1.49806279 | AX170: 1.543928822 | AY170: 1.592620531 | AZ170: =$AZ$46*(AZ160-AZ166-AZ54) -> 1.627931602 | BA170: =$AZ$46*(BA160-BA166-BA54) -> 1.666449912 | BB170: 1.708291155 | BC170: 1.753574992 | BD170: 1.802425167
B171: Post tax cash flow to equity | D171: $ | F171: =-(1-G42)*G58 -> -40 | G171: =G160-G164-G166-G170 -> 2.804698631 | H171: =H160-H164-H166-H170 -> 2.880726097 | I171: 2.959177 | J171: 3.040124993 | K171: 3.123645901 | L171: 3.099024687 | M171: 3.074091518 | N171: 3.048852347 | O171: 3.023313632 | P171: 2.997482363 | Q171: 3.043299215 | R171: 3.090233659 | S171: 3.13831844 | T171: 3.187587336 | U171: 3.238075188 | V171: 3.220829962 | W171: 3.203421573 | X171: 3.185862441 | Y171: 3.168165753 | Z171: 3.15034549 | AA171: 3.16993593 | AB171: 3.190001197 | AC171: 3.21056473 | AD171: 3.231650973 | AE171: 3.253285414 | AF171: 3.229173856 | AG171: 3.205016759 | AH171: 3.180835447 | AI171: 3.156652363 | AJ171: 3.132491115 | AK171: 3.121917395 | AL171: 3.111529312 | AM171: 3.101354959 | AN171: 3.091423783 | AO171: 3.081766633 | AP171: 3.035785776 | AQ171: 2.989976405 | AR171: 2.944372986 | AS171: 2.899011606 | AT171: 2.853930025 | AU171: 2.80312867 | AV171: 2.75270248 | AW171: 2.7026946 | AX171: 2.653150109 | AY171: 2.604116091 | AZ171: 2.517571531 | BA171: 2.432008671 | BB171: 2.347477965 | BC171: 2.264032196 | BD171: 2.181726562
B172: Cost of equity | E172: =IRR(F171:BD171,0.1) -> 0.07412057282
B173: Value of imputation credits | D173: $ | G173: =$G$47*G170 -> 0.09166262254 | H173: =$G$47*H170 -> 0.1088101881 | I173: 0.1266078428 | J173: 0.1450773739 | K173: 0.1642412516 | L173: =$L$47*L170 -> 0.1651295488 | M173: =$L$47*M170 -> 0.1662375618 | N173: 0.1675767774 | O173: 0.1691591221 | P173: 0.1709969766 | Q173: =$Q$47*Q170 -> 0.185434586 | R173: =$Q$47*R170 -> 0.2003929471 | S173: 0.2158900173 | T173: 0.231944342 | U173: 0.2485750734 | V173: =$V$47*V170 -> 0.2539754798 | W173: =$V$47*W170 -> 0.2597430434 | X173: 0.2658944269 | Y173: 0.2724469041 | Z173: 0.2794183793 | AA173: =$AA$47*AA170 -> 0.293259318 | AB173: =$AA$47*AB170 -> 0.3076543995 | AC173: 0.3226247272 | AD173: 0.338192136 | AE173: 0.3543792156 | AF173: =$AF$47*AF170 -> 0.3632686326 | AG173: =$AF$47*AG170 -> 0.3727141777 | AH173: 0.382739564 | AI173: 0.3933693469 | AJ173: 0.4046289518 | AK173: =$AK$47*AK170 -> 0.4188659948 | AL173: =$AK$47*AL170 -> 0.4338057907 | AM173: 0.4494766708 | AN173: 0.4659079548 | AO173: 0.4831299827 | AP173: =$AP$47*AP170 -> 0.4948947123 | AQ173: =$AP$47*AQ170 -> 0.5074851447 | AR173: 0.5209347246 | AS173: 0.5352780527 | AT173: 0.5505509236 | AU173: =$AU$47*AU170 -> 0.5657550925 | AV173: =$AU$47*AV170 -> 0.5819666224 | AW173: 0.599225116 | AX173: 0.617571529 | AY173: 0.6370482123 | AZ173: =$AZ$47*AZ170 -> 0.6511726409 | BA173: =$AZ$47*BA170 -> 0.6665799646 | BB173: 0.6833164622 | BC173: 0.7014299969 | BD173: 0.7209700666
B174: Post tax cash flow to equity + imputation credits | D174: $ | F174: =-(1-G42)*G58 -> -40 | G174: =G171+G173 -> 2.896361254 | H174: 2.989536285 | I174: 3.085784843 | J174: 3.185202367 | K174: 3.287887153 | L174: 3.264154236 | M174: 3.24032908 | N174: 3.216429124 | O174: 3.192472754 | P174: 3.16847934 | Q174: 3.228733801 | R174: 3.290626606 | S174: 3.354208457 | T174: 3.419531678 | U174: 3.486650262 | V174: 3.474805442 | W174: 3.463164616 | X174: 3.451756868 | Y174: 3.440612658 | Z174: 3.429763869 | AA174: 3.463195248 | AB174: 3.497655597 | AC174: 3.533189457 | AD174: 3.569843109 | AE174: 3.607664629 | AF174: 3.592442489 | AG174: 3.577730937 | AH174: 3.563575011 | AI174: 3.55002171 | AJ174: 3.537120067 | AK174: 3.54078339 | AL174: 3.545335103 | AM174: 3.55083163 | AN174: 3.557331738 | AO174: 3.564896616 | AP174: 3.530680489 | AQ174: 3.49746155 | AR174: 3.465307711 | AS174: 3.434289658 | AT174: 3.404480949 | AU174: 3.368883762 | AV174: 3.334669103 | AW174: 3.301919716 | AX174: 3.270721638 | AY174: 3.241164304 | AZ174: 3.168744172 | BA174: 3.098588636 | BB174: 3.030794427 | BC174: 2.965462193 | BD174: 2.902696629
B175: Delivered rate of return on equity | E175: =IRR(F174:BD174,0.1) -> 0.07999128419
B177: Implied return of equity
B178: Equity (start of year) | D178: $ | G178: =-F174 -> 40 | H178: =G181 -> 40.16012428 | I178: =H181 -> 40.2560896 | J178: 40.28071702 | K178: 40.22622185 | L178: 40.08416655 | M178: 39.95620325 | N178: 39.8436884 | O178: 39.74807306 | P178: 39.67090938 | Q178: =P181 -> 39.61385754 | R178: =Q181 -> 39.50676014 | S178: =R181 -> 39.34479017 | T178: =S181 -> 39.12273011 | U178: =T181 -> 38.83494194 | V178: =U181 -> 38.4753349 | W178: =V181 -> 38.1063188 | X178: =W181 -> 37.7273594 | Y178: =X181 -> 37.33787045 | Z178: =Y181 -> 36.93720904 | AA178: =Z181 -> 36.52467065 | AB178: =AA181 -> 36.06196423 | AC178: =AB181 -> 35.54489648 | AD178: =AC181 -> 34.96893983 | AE178: =AD181 -> 34.32920671 | AF178: =AE181 -> 33.62042176 | AG178: =AF181 -> 32.88321283 | AH178: =AG181 -> 32.11551864 | AI178: =AH181 -> 31.31510383 | AJ178: =AI181 -> 30.4795449 | AK178: =AJ181 -> 29.60621511 | AL178: =AK181 -> 28.67872734 | AM178: =AL181 -> 27.69288173 | AN178: =AM181 -> 26.64413902 | AO178: =AN181 -> 25.52759409 | AP178: =AO181 -> 24.33794735 | AQ178: =AP181 -> 23.10610417 | AR178: =AQ181 -> 21.82876544 | AS178: =AR181 -> 20.50235306 | AT178: =AS181 -> 19.1229876 | AU178: =AT181 -> 17.68646437 | AV178: =AU181 -> 16.19426657 | AW178: =AV181 -> 14.64189241 | AX178: =AW181 -> 13.02446326 | AY178: =AX181 -> 11.33669383 | AZ178: =AY181 -> 9.572859978 | BA178: =AZ181 -> 7.764834312 | BB178: =BA181 -> 5.908359608 | BC178: =BB181 -> 3.998812641 | BD178: =BC181 -> 2.031174729
B179: Return on equity | D179: $ | G179: =$E$172*G178 -> 2.964822913 | H179: 2.976691416 | I179: 2.983804421 | J179: 2.985629819 | K179: 2.981590606 | L179: 2.971061386 | M179: 2.961576673 | N179: 2.953237008 | O179: 2.946149944 | P179: 2.940430527 | Q179: =$E$172*Q178 -> 2.936201812 | R179: 2.928263692 | S179: 2.916258385 | T179: 2.899799166 | U179: 2.878468142 | V179: 2.851813862 | W179: 2.824462177 | X179: 2.79637349 | Y179: 2.767504346 | Z179: 2.737807093 | AA179: 2.70722951 | AB179: 2.672933445 | AC179: 2.634608088 | AD179: 2.591917851 | AE179: 2.544500466 | AF179: 2.491964919 | AG179: 2.437322571 | AH179: 2.380420638 | AI179: 2.321093434 | AJ179: 2.259161327 | AK179: 2.194429623 | AL179: 2.125683698 | AM179: 2.052612257 | AN179: 1.974878847 | AO179: 1.892119896 | AP179: 1.803942599 | AQ179: 1.712637677 | AR179: 1.617960599 | AS179: 1.519646153 | AT179: 1.417406795 | AU179: 1.31093087 | AV179: 1.200328315 | AW179: 1.085265452 | AX179: 0.9653806775 | AY179: 0.8402822405 | AZ179: 0.7095458651 | BA179: 0.5755339671 | BB179: 0.4379309986 | BC179: 0.2963942836 | BD179: 0.1505518344
B180: Return of equity | D180: $ | F180: =SUM(G180:BD180) -> 40 | G180: =G171-G179 -> -0.1601242812 | H180: -0.09596531891 | I180: -0.02462742088 | J180: 0.05449517432 | K180: 0.1420552957 | L180: 0.1279633013 | M180: 0.1125148459 | N180: 0.09561533929 | O180: 0.07716368837 | P180: 0.05705183623 | Q180: =Q171-Q179 -> 0.1070974027 | R180: 0.1619699673 | S180: 0.2220600553 | T180: 0.2877881697 | U180: 0.359607046 | V180: 0.3690161003 | W180: 0.3789593953 | X180: 0.3894889512 | Y180: 0.4006614077 | Z180: 0.4125383975 | AA180: 0.4627064195 | AB180: 0.5170677516 | AC180: 0.5759566426 | AD180: 0.6397331219 | AE180: 0.7087849479 | AF180: 0.7372089369 | AG180: 0.7676941886 | AH180: 0.8004148089 | AI180: 0.8355589291 | AJ180: 0.8733297882 | AK180: 0.9274877719 | AL180: 0.9858456139 | AM180: 1.048742703 | AN180: 1.116544936 | AO180: 1.189646737 | AP180: 1.231843178 | AQ180: 1.277338728 | AR180: 1.326412388 | AS180: 1.379365453 | AT180: 1.43652323 | AU180: 1.492197799 | AV180: 1.552374165 | AW180: 1.617429148 | AX180: 1.687769432 | AY180: 1.763833851 | AZ180: 1.808025666 | BA180: 1.856474704 | BB180: 1.909546967 | BC180: 1.967637912 | BD180: 2.031174728
B181: Equity (end of year) | D181: $ | G181: =G178-G180 -> 40.16012428 | H181: =H178-H180 -> 40.2560896 | I181: 40.28071702 | J181: 40.22622185 | K181: 40.08416655 | L181: 39.95620325 | M181: 39.8436884 | N181: 39.74807306 | O181: 39.67090938 | P181: 39.61385754 | Q181: =Q178-Q180 -> 39.50676014 | R181: 39.34479017 | S181: 39.12273011 | T181: 38.83494194 | U181: 38.4753349 | V181: 38.1063188 | W181: 37.7273594 | X181: 37.33787045 | Y181: 36.93720904 | Z181: 36.52467065 | AA181: 36.06196423 | AB181: 35.54489648 | AC181: 34.96893983 | AD181: 34.32920671 | AE181: 33.62042176 | AF181: 32.88321283 | AG181: 32.11551864 | AH181: 31.31510383 | AI181: 30.4795449 | AJ181: 29.60621511 | AK181: 28.67872734 | AL181: 27.69288173 | AM181: 26.64413902 | AN181: 25.52759409 | AO181: 24.33794735 | AP181: 23.10610417 | AQ181: 21.82876544 | AR181: 20.50235306 | AS181: 19.1229876 | AT181: 17.68646437 | AU181: 16.19426657 | AV181: 14.64189241 | AW181: 13.02446326 | AX181: 11.33669383 | AY181: 9.572859978 | AZ181: 7.764834312 | BA181: 5.908359608 | BB181: 3.998812641 | BC181: 2.031174729 | BD181: 9.52267154e-10

Sheet Sheet2

Sheet Sheet3
